{"text_format":"1","workbook":"xlsx","n_sheets":8,"sheets":["Identification","Redd_Cptes_PADD","EVA_DUR","POL_PRJ","RECOM_CDD","Analyse_QT","Analyse_Atteinte","Notes"],"not_rendered":{"charts":0,"images":0,"macros":1,"external_links":0,"defined_names":18,"comments":0,"pivot_tables":0},"unopened":[],"bounds":{"document_bytes":16777216,"sheet_cells":100000,"rows_first":2000,"rows_last":500,"rows_between":2000,"halvings":0,"cell_chars":16384,"cell_head_chars":4096},"cells_cut":0,"cells_raw":0,"read":"whole","date_system":"1900"}

{"sheet":"Identification","index":0,"n_rows":6,"n_cols":8,"rows_kept":6,"cut":false,"hidden":false,"merged":[[5,2,5,7],[0,0,0,7],[1,2,1,7],[4,2,4,7]]}
["Formulaire de planification et de suivi 2023-2028"]
["Clef unique","Nom du ministère ou de l'organisme (MO)"]
["CLEF_uni","NOM","ETC_23-24","ETC_24-25","ETC_25-26","ETC_26-27","ETC_26-28","ETC_27-28"]
[null,"Nombre d'employés équivalent à temps complet (ETC) ","À remplir en 2024","À remplir en 2025","À remplir en 2026","À remplir en 2027","À remplir en 2028","À remplir en 2029"]
[null,"Date d'adoption du PADD :","Inscrire la date"]
[null,"Officier de développement durable :  ","Inscrire le nom de l'ODD"]

{"sheet":"Redd_Cptes_PADD","index":1,"n_rows":7,"n_cols":51,"rows_kept":7,"cut":false,"hidden":false,"merged":[]}
["Clef unique","Date d'adoption de l'engagement","Numéro de l'engagement","Planification existante","Sous-objectif - SGDD","Objectif de développement durable 2030 visé","Numéro de l'action","Libellé de l'action","Description de l'action","Numéro de l'indicateur","Libellé de l'indicateur","Référence (donnée/année)","Cible au 31 mars 2024","Cible au 31 mars 2025","Cible au 31 mars 2026","Cible au 31 mars 2027","Cible au 31 mars 2028","Cible au 31 mars 2029","Résultats et synthèse des activités 2023-2024\n (Max 20 mots/ 125 caractères) ","Détail des activités réalisées au cours de l'année 2023-2024\n (Max 65 mots/400 caractères)","État de l'engagement 2023-2024","Pourcentage d'atteinte de la cible 2023-2024","Soutien financier / investissement\nassocié à l'engagement 2023-2024","Résultats et synthèse des activités  2024-2025\n(Max 20 mots/ 125 caractères)  ","Détail des activités réalisées au cours de l'année 2024-2025\n (Max 65 mots/400 caractères) ","État de l'engagement 2024-2025","Pourcentage d'atteinte de la cible 2024-2025","Soutien financier / investissement\nassocié à l'engagement 2024-2025","Résultats et synthèse des activités  2025-2026\n(Max 20 mots/ 125 caractères)  ","Détail des activités réalisées au cours de l'année 2025-2026\n (Max 65 mots/400 caractères) ","État de l'engagement 2025-2026","Pourcentage d'atteinte de la cible 2025-2026","Soutien financier / investissement\nassocié à l'engagement 2025-2026","Résultats et synthèse des activités  2026-2027\n(Max 20 mots/ 125 caractères)  ","Détail des activités réalisées au cours de l'année 2026-2027\n (Max 65 mots/400 caractères) ","État de l'engagement 2026-2027","Pourcentage d'atteinte de la cible 2026-2027","Soutien financier / investissement\nassocié à l'engagement 2026-2027","Résultats et synthèse des activités  2027-2028\n(Max 20 mots/ 125 caractères)  ","Détail des activités réalisées au cours de l'année 2027-2028\n (Max 65 mots/400 caractères) ","État de l'engagement 2027-2028","Pourcentage d'atteinte de la cible 2027-2028","Soutien financier / investissement\nassocié à l'engagement 2027-2028","Résultats et synthèse des activités  2028-2029\n(Max 20 mots/ 125 caractères)  ","Détail des activités réalisées au cours de l'année 2028-2029\n (Max 65 mots/400 caractères) ","État de l'engagement 2028-2029","Pourcentage d'atteinte de la cible 2028-2029","Soutien financier / investissement\nassocié à l'engagement 2028-2029","Plan de travail / réalisation","Direction/secteur responsable de l'engagement","Budget associé à la réalisation de l'engagement"]
["CLEF_uni","DAT_ENG","No_ENG","PL_EXT","No_S-OBJ","ODD","No_ACT2","LIB_ACT","DES_ACT","No_IND","Lib_IND","Ref","CIB_24","CIB_25","CIB_26","CIB_27","CIB_28","CIB_29","RESUL_23_24","DETAIL_23_24","ATTEINTE_23-24","Pc_ATT_23-24","SF_23-24","RESUL_24_25","DETAIL_24_25","ATTEINTE_24-25","Pc_ATT_24-25","SF_24-25","RESUL_25_26","DETAIL_25_26","ATTEINTE_25-26","Pc_ATT_25-26","SF_25-26","RESUL_26_27","DETAIL_26_27","ATTEINTE_26-27","Pc_ATT_26-27","SF_26-27","RESUL_27_28","DETAIL_27_28","ATTEINTE_27-28","Pc_ATT_27-28","SF_27-28","RESUL_28_29","DETAIL_28_29","ATTEINTE_28-29","Pc_ATT_28-29","SF_28-29","PDT","Resp_ACT","Budg_ACT"]
[{"$f":"Table1[CLEF_uni]","v":0},"02-23-2024",2,null,"1.2.1",null,1,"Assurer le développement des compétences vertes \n ","Identifier les impacts de la transition socio-écologique, notamment la transition climatique, sur l’emploi \net les compétences des travailleurs de leurs secteurs d’activité, et répondre à cet enjeu par leurs \npolitiques publiques et leurs programmes","1.1","Nombre d'actions réalisées par LOJIQ autour du développement durable ","N/A",10,14,16,18,20,null,"Inscrire le résultat","Inscrire les détails","NON ATTEINT- Débuté",null,null,"Inscrire le résultat","Inscrire les détails","ATTEINT",null,null,"Inscrire le résultat","Inscrire les détails","ATTEINT",null,null,"Inscrire le résultat","Inscrire les détails","ATTEINT",null,null,"Inscrire le résultat","Inscrire les détails","ATTEINT",null,null,"Inscrire le résultat","Inscrire les détails","ATTEINT",null,null,"2023-2024 : 13 actions\n2024-2025 :\n2025-2026 :\n2026-2027 :\n2027-2028 :"]
[{"$f":"Table1[CLEF_uni]","v":0},"02-23-2024",3,null,"3.1.2",null,2,"Soutenir les groupes communautaires et les entreprises en économie sociale ","Établir les retombées de la transition socio-écologique sur leur clientèle et sur les services qui lui sont \nofferts afin de les adapter. Il est également attendu qu’ils appuient les organismes qui contribuent à \nl’inclusion sociale et économique, car ceux-ci jouent un rôle essentiel dans cette transition. ","2.1","Nombre d’actions visant à soutenir les entreprises en économie sociale et les groupes communautaires","N/A",6,10,12,15,18,null,"Inscrire le résultat","Inscrire les détails","NON ATTEINT- Débuté",null,null,"Inscrire le résultat","Inscrire les détails","ATTEINT",null,null,"Inscrire le résultat","Inscrire les détails","NON ATTEINT- Débuté",0.65,null,"Inscrire le résultat","Inscrire les détails","ATTEINT",null,null,"Inscrire le résultat","Inscrire les détails","ATTEINT",null,null,"Inscrire le résultat","Inscrire les détails","NON ATTEINT- Débuté",0.77,null,"2023-2024 : 8 actions\n2024-2025 :\n2025-2026 :\n2026-2027 :\n2027-2028 :"]
[{"$f":"Table1[CLEF_uni]","v":0},"02-23-2024",4,null,"3.2.1",null,1,"Favoriser la cohésion sociale par le dialogue culturel ","Inclure les questions relatives à l’égalité entre les sexes, à l’équité et à la diversité dans leurs lois, politiques \npubliques et programmes et qu’ils mobilisent leurs partenaires privés et publics sur cet enjeu. Il est aussi attendu qu’ils mettent en valeur l’apport socioculturel des jeunes, des femmes, \ndes Autochtones et des personnes issues de la diversité à société québécoise.","1.1","Proportion des projets de LOJIQ",1,1,1,1,1,1,null,"Inscrire le résultat","Inscrire les détails","NON ATTEINT- Débuté",null,null,"Inscrire le résultat","Inscrire les détails","ATTEINT",null,null,"Inscrire le résultat","Inscrire les détails","NON ATTEINT- Débuté",0.8,null,"Inscrire le résultat","Inscrire les détails","NON ATTEINT- Débuté",0.98,null,"Inscrire le résultat","Inscrire les détails","ATTEINT",null,null,"Inscrire le résultat","Inscrire les détails","NON ATTEINT- Débuté",0.88,null,"2023-2024 : 100%\n2024-2025 :\n2025-2026 :\n2026-2027 :\n2027-2028 :"]
[{"$f":"Table1[CLEF_uni]","v":0},"02-23-2024",5,null,"3.2.2",null,"2","Appuyer l’entrepreneuriat des femmes, des autochtones et des personnes issues de la diversité ","Encourager l’entrepreneuriat des femmes, des \nAutochtones et des personnes issues de la diversité en portant une attention particulière aux jeunes. Ils \nsont aussi appelés à soutenir l’intégration au marché du travail de ces personnes et le développement \nde milieux de travail sécuritaires et inclusifs pour tous.","2.1","Nombre de projets initiés pour soutenir l’entrepreneuriat féminin, des autochtones et des personnes issues de la diversité ","N/A",2,3,3,4,4,null,"Inscrire le résultat","Inscrire les détails","NON ATTEINT- Débuté",null,null,"Inscrire le résultat","Inscrire les détails","ATTEINT",null,null,"Inscrire le résultat","Inscrire les détails","NON ATTEINT- Débuté",0.9,null,"Inscrire le résultat","Inscrire les détails","NON ATTEINT- Débuté",0.77,null,"Inscrire le résultat","Inscrire les détails","ATTEINT",null,null,"Inscrire le résultat","Inscrire les détails","NON ATTEINT- Débuté",0.99,null,"2023-2024 : 3 actions\n2024-2025 :\n2025-2026 :\n2026-2027 :\n2027-2028 :"]
[{"$f":"Table1[CLEF_uni]","v":0},"02-23-2024",8,null,"5.1.1",null,1,"Évaluer la durabilité des interventions gouvernementales ","Accroissent le taux de leurs interventions structurantes ayant fait l’objet d’une évaluation de la durabilité \net comprenant la lutte contre les changements climatiques.","1.1","Intégration des objectifs de développement durable dans la révision des programmes de LOJIQ ","N/A",0.75,0.85,0.9,0.95,1,null,"Inscrire le résultat","Inscrire les détails","NON ATTEINT- Débuté",null,null,"Inscrire le résultat","Inscrire les détails","ATTEINT",null,null,"Inscrire le résultat","Inscrire les détails",null,null,null,"Inscrire le résultat","Inscrire les détails",null,null,null,"Inscrire le résultat","Inscrire les détails","NON ATTEINT- Débuté",0.98,null,"Inscrire le résultat","Inscrire les détails",null,null,null,"2023-2024 :\n2024-2025 :\n2025-2026 :\n2026-2027 :\n2027-2028 :"]

{"sheet":"EVA_DUR","index":2,"n_rows":9,"n_cols":17,"rows_kept":9,"cut":false,"hidden":false,"merged":[[0,14,0,16],[0,2,0,4],[2,0,6,0],[0,5,0,7],[0,8,0,10],[0,11,0,13],[0,0,1,0],[0,1,1,1]]}
["Indicateur","Types d'interventions","Résultat 2023-2024",null,null,"Résultat 2024-2025",null,null,"Résultat 2025-2026",null,null,"Résultat 2026-2027",null,null,"Résultat 2027-2028"]
[null,null,"Nombre d'interventions évalués","Nombre total d'interventions","Proportion","Nombre d'interventions évalués","Nombre total d'interventions","Proportion","Nombre d'interventions évalués","Nombre total d'interventions","Proportion","Nombre d'interventions évalués","Nombre total d'interventions","Proportion","Nombre d'interventions évalués","Nombre total d'interventions","Proportion"]
["Proportion des interventions organisationnelles ayant fait l’objet d’une évaluation de la durabilité","Plan stratégique",0,0,{"$f":"IF(D3,C3/D3,\"S.O\")","v":"S.O"},null,null,{"$f":"IF(G3,F3/G3,\"S.O\")","v":"S.O"},null,null,{"$f":"IF(J3,I3/J3,\"S.O\")","v":"S.O"},null,null,{"$f":"IF(M3,L3/M3,\"S.O\")","v":"S.O"},null,null,{"$f":"IF(P3,O3/P3,\"S.O\")","v":"S.O"}]
[null,"intervention menant à un mémoire au Conseil des ministres",2,7,{"$f":"IF(D4,C4/D4,\"S.O\")","v":0.2857142857142857},null,null,{"$f":"IF(G4,F4/G4,\"S.O\")","v":"S.O"},null,null,{"$f":"IF(J4,I4/J4,\"S.O\")","v":"S.O"},null,null,{"$f":"IF(M4,L4/M4,\"S.O\")","v":"S.O"},null,null,{"$f":"IF(P4,O4/P4,\"S.O\")","v":"S.O"}]
[null,"programmes de soutien financier normés",2,2,1,null,null,"S.O",null,null,"S.O",null,null,"S.O",null,null,"S.O"]
[null,"Autre intervention jugée structurante au sein de l’organisation*",0,0,"S.O",null,null,"S.O",null,null,"S.O",null,null,"S.O",null,null,"S.O"]
[null,"Total",{"$f":"SUM(C3:C6)","v":4},{"$f":"SUM(D3:D6)","v":9},{"$f":"IF(D7,C7/D7,\"S.O\")","v":0.44444444444444442},{"$f":"SUM(F3:F6)","v":0},{"$f":"SUM(G3:G6)","v":0},"S.O",{"$f":"SUM(I3:I6)","v":0},{"$f":"SUM(J3:J6)","v":0},"S.O",{"$f":"SUM(L3:L6)","v":0},{"$f":"SUM(M3:M6)","v":0},"S.O",{"$f":"SUM(O3:O6)","v":0},{"$f":"SUM(P3:P6)","v":0},"S.O"]
[]
["*Autre intervention jugée structurante au sein de l’organisation","Préciser les types d'interventions visés"]

{"sheet":"POL_PRJ","index":3,"n_rows":12,"n_cols":6,"rows_kept":12,"cut":false,"hidden":false,"merged":[]}
["Clef unique","Lois, politiques, stratégies et plans d'action adoptés au cours de l'année","Date d'adoption","Date de fin","Thème","LIEN SGDD"]
["CLEF_uni","POL_ADOP","DAT_ADOP","DAT_FIN","THEME","POL_SGDD"]
[{"$f":"Table1[CLEF_uni]","v":0},"Listez vos lois, politiques, stratégies et plan d'action ici."]
[{"$f":"Table1[CLEF_uni]","v":0},"Listez vos lois, politiques, stratégies et plan d'action ici."]
[{"$f":"Table1[CLEF_uni]","v":0},"Listez vos lois, politiques, stratégies et plan d'action ici."]
[{"$f":"Table1[CLEF_uni]","v":0},"Listez vos lois, politiques, stratégies et plan d'action ici."]
[{"$f":"Table1[CLEF_uni]","v":0},"Listez vos lois, politiques, stratégies et plan d'action ici."]
[]
["Clef unique","Projet phare/fait saillant en développement durable\n(Max 100 mots/625 caractères) "]
["CLEF_uni","PROJ_PHARE"]
[{"$f":"Table1[CLEF_uni]","v":0},"Inscrire un projet phare ou un fait saillant de votre organisation en développement durable mise en œuvre ou élaboré au cours de l'année."]
[{"$f":"Table1[CLEF_uni]","v":0},"Inscrire un projet phare ou un fait saillant de votre organisation en développement durable mise en œuvre ou élaboré au cours de l'année."]

{"sheet":"RECOM_CDD","index":4,"n_rows":18,"n_cols":4,"rows_kept":18,"cut":false,"hidden":false,"merged":[]}
["Clef unique","Recommandations du Commissaire au développement durable ","Mesures prises suite aux recommandations \n","Résultats (Atteint/non-atteint)"]
["CLEF_uni","RECOM_CDD","MESURE_CDD","RESUL_CDD"]
[{"$f":"Table1[CLEF_uni]","v":0},"Inscrire les recommandations ici.","Inscrire les mesures prises ici.","Inscrire les résultats ici."]
[{"$f":"Table1[CLEF_uni]","v":0},"Inscrire les recommandations ici.","Inscrire les mesures prises ici.","Inscrire les résultats ici."]
[{"$f":"Table1[CLEF_uni]","v":0},"Inscrire les recommandations ici.","Inscrire les mesures prises ici.","Inscrire les résultats ici."]
[{"$f":"Table1[CLEF_uni]","v":0},"Inscrire les recommandations ici.","Inscrire les mesures prises ici.","Inscrire les résultats ici."]
[{"$f":"Table1[CLEF_uni]","v":0},"Inscrire les recommandations ici.","Inscrire les mesures prises ici.","Inscrire les résultats ici."]
[{"$f":"Table1[CLEF_uni]","v":0},"Inscrire les recommandations ici.","Inscrire les mesures prises ici.","Inscrire les résultats ici."]
[{"$f":"Table1[CLEF_uni]","v":0},"Inscrire les recommandations ici.","Inscrire les mesures prises ici.","Inscrire les résultats ici."]
[{"$f":"Table1[CLEF_uni]","v":0},"Inscrire les recommandations ici.","Inscrire les mesures prises ici.","Inscrire les résultats ici."]
[{"$f":"Table1[CLEF_uni]","v":0},"Inscrire les recommandations ici.","Inscrire les mesures prises ici.","Inscrire les résultats ici."]
[{"$f":"Table1[CLEF_uni]","v":0},"Inscrire les recommandations ici.","Inscrire les mesures prises ici.","Inscrire les résultats ici."]
[{"$f":"Table1[CLEF_uni]","v":0},"Inscrire les recommandations ici.","Inscrire les mesures prises ici.","Inscrire les résultats ici."]
[{"$f":"Table1[CLEF_uni]","v":0},"Inscrire les recommandations ici.","Inscrire les mesures prises ici.","Inscrire les résultats ici."]
[{"$f":"Table1[CLEF_uni]","v":0},"Inscrire les recommandations ici.","Inscrire les mesures prises ici.","Inscrire les résultats ici."]
[{"$f":"Table1[CLEF_uni]","v":0},"Inscrire les recommandations ici.","Inscrire les mesures prises ici.","Inscrire les résultats ici."]
[{"$f":"Table1[CLEF_uni]","v":0},"Inscrire les recommandations ici.","Inscrire les mesures prises ici.","Inscrire les résultats ici."]
[{"$f":"Table1[CLEF_uni]","v":0},"Inscrire les recommandations ici.","Inscrire les mesures prises ici.","Inscrire les résultats ici."]

{"sheet":"Analyse_QT","index":5,"n_rows":37,"n_cols":23,"rows_kept":37,"cut":false,"hidden":true,"merged":[[0,0,0,22],[1,0,1,12],[1,13,1,15],[1,16,1,21],[32,6,32,12],[32,3,32,4]]}
["ANALYSE DE LA QUALITÉ DU PLAN D'ACTION DE DÉVELOPPEMENT DURABLE"]
["Plan d'action 2023-2028 de l'organisation",null,null,null,null,null,null,null,null,null,null,null,null,"Analyse général engagement",null,null,"Engagement SMART"]
["Clef unique","№\naction","Action","Description action","№\nindicateur","Indicateur","Référence","Cible 2023-2024","Cible 2024-2025","Cible 2025-2026","Cible 2026-2027","Cible 2027-2028","Cible 2028-2029","Type indicateur","Cible annuelle","Engagements ambitieux","Engagement spécifique","Engagement mesurable","Engagement atteignable","Engagement pertinent (SGDD)","Temporel ","SMART","Commentaires"]
["CLEF_uni","No_ACT","LIB_ACT","DES_ACT","No_IND","Lib_IND","Ref","CIB_24","CIB_25","CIB_26","CIB_27","CIB_28","CIB_29","TYP_IND","ANN","AMB","SPC","ME","ATT","PER","TEMP","TOTAL","COM"]
[{"$f":"Table1[CLEF_uni]","v":0},{"$f":"Redd_Cptes_PADD!#REF!","v":{"$error":"#REF!"}},{"$f":"Redd_Cptes_PADD!#REF!","v":{"$error":"#REF!"}},{"$f":"Redd_Cptes_PADD!#REF!","v":{"$error":"#REF!"}},{"$f":"Redd_Cptes_PADD!#REF!","v":{"$error":"#REF!"}},{"$f":"Redd_Cptes_PADD!#REF!","v":{"$error":"#REF!"}},{"$f":"Redd_Cptes_PADD!#REF!","v":{"$error":"#REF!"}},{"$f":"Redd_Cptes_PADD!#REF!","v":{"$error":"#REF!"}},{"$f":"Redd_Cptes_PADD!#REF!","v":{"$error":"#REF!"}},{"$f":"Redd_Cptes_PADD!#REF!","v":{"$error":"#REF!"}},{"$f":"Redd_Cptes_PADD!#REF!","v":{"$error":"#REF!"}},{"$f":"Redd_Cptes_PADD!#REF!","v":{"$error":"#REF!"}},{"$f":"Redd_Cptes_PADD!#REF!","v":{"$error":"#REF!"}},"Activité","OUI","OUI","OUI","OUI","OUI","OUI","OUI",{"$f":"IF(COUNTIFS(Q5,\"OUI\",R5,\"OUI\",S5,\"OUI\",T5,\"OUI\",U5,\"OUI\"),\"OUI\",\"NON\")","v":"OUI"}]
[{"$f":"Table1[CLEF_uni]","v":0},{"$f":"Redd_Cptes_PADD!G3","v":1},{"$f":"Redd_Cptes_PADD!H3","v":"Assurer le développement des compétences vertes \n "},{"$f":"Redd_Cptes_PADD!I3","v":"Identifier les impacts de la transition socio-écologique, notamment la transition climatique, sur l’emploi \net les compétences des travailleurs de leurs secteurs d’activité, et répondre à cet enjeu par leurs \npolitiques publiques et leurs programmes"},{"$f":"Redd_Cptes_PADD!J3","v":"1.1"},{"$f":"Redd_Cptes_PADD!K3","v":"Nombre d'actions réalisées par LOJIQ autour du développement durable "},{"$f":"Redd_Cptes_PADD!L3","v":"N/A"},{"$f":"Redd_Cptes_PADD!M3","v":10},{"$f":"Redd_Cptes_PADD!N3","v":14},{"$f":"Redd_Cptes_PADD!O3","v":16},{"$f":"Redd_Cptes_PADD!P3","v":18},{"$f":"Redd_Cptes_PADD!Q3","v":20},{"$f":"Redd_Cptes_PADD!R3","v":0},"Extrant",null,null,"OUI","OUI","OUI","OUI","OUI",{"$f":"IF(COUNTIFS(Q6,\"OUI\",R6,\"OUI\",S6,\"OUI\",T6,\"OUI\",U6,\"OUI\"),\"OUI\",\"NON\")","v":"OUI"}]
[{"$f":"Table1[CLEF_uni]","v":0},{"$f":"Redd_Cptes_PADD!G4","v":2},{"$f":"Redd_Cptes_PADD!H4","v":"Soutenir les groupes communautaires et les entreprises en économie sociale "},{"$f":"Redd_Cptes_PADD!I4","v":"Établir les retombées de la transition socio-écologique sur leur clientèle et sur les services qui lui sont \nofferts afin de les adapter. Il est également attendu qu’ils appuient les organismes qui contribuent à \nl’inclusion sociale et économique, car ceux-ci jouent un rôle essentiel dans cette transition. "},{"$f":"Redd_Cptes_PADD!J4","v":"2.1"},{"$f":"Redd_Cptes_PADD!K4","v":"Nombre d’actions visant à soutenir les entreprises en économie sociale et les groupes communautaires"},{"$f":"Redd_Cptes_PADD!L4","v":"N/A"},{"$f":"Redd_Cptes_PADD!M4","v":6},{"$f":"Redd_Cptes_PADD!N4","v":10},{"$f":"Redd_Cptes_PADD!O4","v":12},{"$f":"Redd_Cptes_PADD!P4","v":15},{"$f":"Redd_Cptes_PADD!Q4","v":18},{"$f":"Redd_Cptes_PADD!R4","v":0},"Extrant",null,null,null,null,null,null,null,"NON"]
[{"$f":"Table1[CLEF_uni]","v":0},{"$f":"Redd_Cptes_PADD!G5","v":1},{"$f":"Redd_Cptes_PADD!H5","v":"Favoriser la cohésion sociale par le dialogue culturel "},{"$f":"Redd_Cptes_PADD!I5","v":"Inclure les questions relatives à l’égalité entre les sexes, à l’équité et à la diversité dans leurs lois, politiques \npubliques et programmes et qu’ils mobilisent leurs partenaires privés et publics sur cet enjeu. Il est aussi attendu qu’ils mettent en valeur l’apport socioculturel des jeunes, des femmes, \ndes Autochtones et des personnes issues de la diversité à société québécoise."},{"$f":"Redd_Cptes_PADD!J5","v":"1.1"},{"$f":"Redd_Cptes_PADD!K5","v":"Proportion des projets de LOJIQ"},{"$f":"Redd_Cptes_PADD!L5","v":1},{"$f":"Redd_Cptes_PADD!M5","v":1},{"$f":"Redd_Cptes_PADD!N5","v":1},{"$f":"Redd_Cptes_PADD!O5","v":1},{"$f":"Redd_Cptes_PADD!P5","v":1},{"$f":"Redd_Cptes_PADD!Q5","v":1},{"$f":"Redd_Cptes_PADD!R5","v":0},"Extrant",null,null,null,null,null,null,null,"NON"]
[{"$f":"Table1[CLEF_uni]","v":0},{"$f":"Redd_Cptes_PADD!G6","v":"2"},{"$f":"Redd_Cptes_PADD!H6","v":"Appuyer l’entrepreneuriat des femmes, des autochtones et des personnes issues de la diversité "},{"$f":"Redd_Cptes_PADD!I6","v":"Encourager l’entrepreneuriat des femmes, des \nAutochtones et des personnes issues de la diversité en portant une attention particulière aux jeunes. Ils \nsont aussi appelés à soutenir l’intégration au marché du travail de ces personnes et le développement \nde milieux de travail sécuritaires et inclusifs pour tous."},{"$f":"Redd_Cptes_PADD!J6","v":"2.1"},{"$f":"Redd_Cptes_PADD!K6","v":"Nombre de projets initiés pour soutenir l’entrepreneuriat féminin, des autochtones et des personnes issues de la diversité "},{"$f":"Redd_Cptes_PADD!L6","v":"N/A"},{"$f":"Redd_Cptes_PADD!M6","v":2},{"$f":"Redd_Cptes_PADD!N6","v":3},{"$f":"Redd_Cptes_PADD!O6","v":3},{"$f":"Redd_Cptes_PADD!P6","v":4},{"$f":"Redd_Cptes_PADD!Q6","v":4},{"$f":"Redd_Cptes_PADD!R6","v":0},"Extrant",null,null,null,null,null,null,null,"NON"]
[{"$f":"Table1[CLEF_uni]","v":0},{"$f":"Redd_Cptes_PADD!#REF!","v":{"$error":"#REF!"}},{"$f":"Redd_Cptes_PADD!#REF!","v":{"$error":"#REF!"}},{"$f":"Redd_Cptes_PADD!#REF!","v":{"$error":"#REF!"}},{"$f":"Redd_Cptes_PADD!#REF!","v":{"$error":"#REF!"}},{"$f":"Redd_Cptes_PADD!#REF!","v":{"$error":"#REF!"}},{"$f":"Redd_Cptes_PADD!#REF!","v":{"$error":"#REF!"}},{"$f":"Redd_Cptes_PADD!#REF!","v":{"$error":"#REF!"}},{"$f":"Redd_Cptes_PADD!#REF!","v":{"$error":"#REF!"}},{"$f":"Redd_Cptes_PADD!#REF!","v":{"$error":"#REF!"}},{"$f":"Redd_Cptes_PADD!#REF!","v":{"$error":"#REF!"}},{"$f":"Redd_Cptes_PADD!#REF!","v":{"$error":"#REF!"}},{"$f":"Redd_Cptes_PADD!#REF!","v":{"$error":"#REF!"}},"Extrant",null,null,null,null,null,null,null,"NON"]
[{"$f":"Table1[CLEF_uni]","v":0},{"$f":"Redd_Cptes_PADD!#REF!","v":{"$error":"#REF!"}},{"$f":"Redd_Cptes_PADD!#REF!","v":{"$error":"#REF!"}},{"$f":"Redd_Cptes_PADD!#REF!","v":{"$error":"#REF!"}},{"$f":"Redd_Cptes_PADD!#REF!","v":{"$error":"#REF!"}},{"$f":"Redd_Cptes_PADD!#REF!","v":{"$error":"#REF!"}},{"$f":"Redd_Cptes_PADD!#REF!","v":{"$error":"#REF!"}},{"$f":"Redd_Cptes_PADD!#REF!","v":{"$error":"#REF!"}},{"$f":"Redd_Cptes_PADD!#REF!","v":{"$error":"#REF!"}},{"$f":"Redd_Cptes_PADD!#REF!","v":{"$error":"#REF!"}},{"$f":"Redd_Cptes_PADD!#REF!","v":{"$error":"#REF!"}},{"$f":"Redd_Cptes_PADD!#REF!","v":{"$error":"#REF!"}},{"$f":"Redd_Cptes_PADD!#REF!","v":{"$error":"#REF!"}},"Extrant",null,null,null,null,null,null,null,"NON"]
[{"$f":"Table1[CLEF_uni]","v":0},{"$f":"Redd_Cptes_PADD!G7","v":1},{"$f":"Redd_Cptes_PADD!H7","v":"Évaluer la durabilité des interventions gouvernementales "},{"$f":"Redd_Cptes_PADD!I7","v":"Accroissent le taux de leurs interventions structurantes ayant fait l’objet d’une évaluation de la durabilité \net comprenant la lutte contre les changements climatiques."},{"$f":"Redd_Cptes_PADD!J7","v":"1.1"},{"$f":"Redd_Cptes_PADD!#REF!","v":{"$error":"#REF!"}},{"$f":"Redd_Cptes_PADD!L7","v":"N/A"},{"$f":"Redd_Cptes_PADD!M7","v":0.75},{"$f":"Redd_Cptes_PADD!N7","v":0.85},{"$f":"Redd_Cptes_PADD!O7","v":0.9},{"$f":"Redd_Cptes_PADD!P7","v":0.95},{"$f":"Redd_Cptes_PADD!Q7","v":1},{"$f":"Redd_Cptes_PADD!R7","v":0},"Extrant",null,null,null,null,null,null,null,"NON"]
[{"$f":"Table1[CLEF_uni]","v":0},{"$f":"Redd_Cptes_PADD!#REF!","v":{"$error":"#REF!"}},{"$f":"Redd_Cptes_PADD!#REF!","v":{"$error":"#REF!"}},{"$f":"Redd_Cptes_PADD!#REF!","v":{"$error":"#REF!"}},{"$f":"Redd_Cptes_PADD!#REF!","v":{"$error":"#REF!"}},{"$f":"Redd_Cptes_PADD!#REF!","v":{"$error":"#REF!"}},{"$f":"Redd_Cptes_PADD!#REF!","v":{"$error":"#REF!"}},{"$f":"Redd_Cptes_PADD!#REF!","v":{"$error":"#REF!"}},{"$f":"Redd_Cptes_PADD!#REF!","v":{"$error":"#REF!"}},{"$f":"Redd_Cptes_PADD!#REF!","v":{"$error":"#REF!"}},{"$f":"Redd_Cptes_PADD!#REF!","v":{"$error":"#REF!"}},{"$f":"Redd_Cptes_PADD!#REF!","v":{"$error":"#REF!"}},{"$f":"Redd_Cptes_PADD!#REF!","v":{"$error":"#REF!"}},"Extrant",null,null,null,null,null,null,null,"NON"]
[{"$f":"Table1[CLEF_uni]","v":0},{"$f":"Redd_Cptes_PADD!#REF!","v":{"$error":"#REF!"}},{"$f":"Redd_Cptes_PADD!#REF!","v":{"$error":"#REF!"}},{"$f":"Redd_Cptes_PADD!#REF!","v":{"$error":"#REF!"}},{"$f":"Redd_Cptes_PADD!#REF!","v":{"$error":"#REF!"}},{"$f":"Redd_Cptes_PADD!#REF!","v":{"$error":"#REF!"}},{"$f":"Redd_Cptes_PADD!#REF!","v":{"$error":"#REF!"}},{"$f":"Redd_Cptes_PADD!#REF!","v":{"$error":"#REF!"}},{"$f":"Redd_Cptes_PADD!#REF!","v":{"$error":"#REF!"}},{"$f":"Redd_Cptes_PADD!#REF!","v":{"$error":"#REF!"}},{"$f":"Redd_Cptes_PADD!#REF!","v":{"$error":"#REF!"}},{"$f":"Redd_Cptes_PADD!#REF!","v":{"$error":"#REF!"}},{"$f":"Redd_Cptes_PADD!#REF!","v":{"$error":"#REF!"}},"Extrant",null,null,null,null,null,null,null,"NON"]
[{"$f":"Table1[CLEF_uni]","v":0},{"$f":"Redd_Cptes_PADD!#REF!","v":{"$error":"#REF!"}},{"$f":"Redd_Cptes_PADD!#REF!","v":{"$error":"#REF!"}},{"$f":"Redd_Cptes_PADD!#REF!","v":{"$error":"#REF!"}},{"$f":"Redd_Cptes_PADD!#REF!","v":{"$error":"#REF!"}},{"$f":"Redd_Cptes_PADD!#REF!","v":{"$error":"#REF!"}},{"$f":"Redd_Cptes_PADD!#REF!","v":{"$error":"#REF!"}},{"$f":"Redd_Cptes_PADD!#REF!","v":{"$error":"#REF!"}},{"$f":"Redd_Cptes_PADD!#REF!","v":{"$error":"#REF!"}},{"$f":"Redd_Cptes_PADD!#REF!","v":{"$error":"#REF!"}},{"$f":"Redd_Cptes_PADD!#REF!","v":{"$error":"#REF!"}},{"$f":"Redd_Cptes_PADD!#REF!","v":{"$error":"#REF!"}},{"$f":"Redd_Cptes_PADD!#REF!","v":{"$error":"#REF!"}},"Extrant",null,null,null,null,null,null,null,"NON"]
[{"$f":"Table1[CLEF_uni]","v":0},{"$f":"Redd_Cptes_PADD!#REF!","v":{"$error":"#REF!"}},{"$f":"Redd_Cptes_PADD!#REF!","v":{"$error":"#REF!"}},{"$f":"Redd_Cptes_PADD!#REF!","v":{"$error":"#REF!"}},{"$f":"Redd_Cptes_PADD!#REF!","v":{"$error":"#REF!"}},{"$f":"Redd_Cptes_PADD!#REF!","v":{"$error":"#REF!"}},{"$f":"Redd_Cptes_PADD!#REF!","v":{"$error":"#REF!"}},{"$f":"Redd_Cptes_PADD!#REF!","v":{"$error":"#REF!"}},{"$f":"Redd_Cptes_PADD!#REF!","v":{"$error":"#REF!"}},{"$f":"Redd_Cptes_PADD!#REF!","v":{"$error":"#REF!"}},{"$f":"Redd_Cptes_PADD!#REF!","v":{"$error":"#REF!"}},{"$f":"Redd_Cptes_PADD!#REF!","v":{"$error":"#REF!"}},{"$f":"Redd_Cptes_PADD!#REF!","v":{"$error":"#REF!"}},"Extrant",null,null,null,null,null,null,null,"NON"]
[{"$f":"Table1[CLEF_uni]","v":0},{"$f":"Redd_Cptes_PADD!#REF!","v":{"$error":"#REF!"}},{"$f":"Redd_Cptes_PADD!#REF!","v":{"$error":"#REF!"}},{"$f":"Redd_Cptes_PADD!#REF!","v":{"$error":"#REF!"}},{"$f":"Redd_Cptes_PADD!#REF!","v":{"$error":"#REF!"}},{"$f":"Redd_Cptes_PADD!#REF!","v":{"$error":"#REF!"}},{"$f":"Redd_Cptes_PADD!#REF!","v":{"$error":"#REF!"}},{"$f":"Redd_Cptes_PADD!#REF!","v":{"$error":"#REF!"}},{"$f":"Redd_Cptes_PADD!#REF!","v":{"$error":"#REF!"}},{"$f":"Redd_Cptes_PADD!#REF!","v":{"$error":"#REF!"}},{"$f":"Redd_Cptes_PADD!#REF!","v":{"$error":"#REF!"}},{"$f":"Redd_Cptes_PADD!#REF!","v":{"$error":"#REF!"}},{"$f":"Redd_Cptes_PADD!#REF!","v":{"$error":"#REF!"}},"Extrant",null,null,null,null,null,null,null,"NON"]
[{"$f":"Table1[CLEF_uni]","v":0},{"$f":"Redd_Cptes_PADD!#REF!","v":{"$error":"#REF!"}},{"$f":"Redd_Cptes_PADD!#REF!","v":{"$error":"#REF!"}},{"$f":"Redd_Cptes_PADD!#REF!","v":{"$error":"#REF!"}},{"$f":"Redd_Cptes_PADD!#REF!","v":{"$error":"#REF!"}},{"$f":"Redd_Cptes_PADD!#REF!","v":{"$error":"#REF!"}},{"$f":"Redd_Cptes_PADD!#REF!","v":{"$error":"#REF!"}},{"$f":"Redd_Cptes_PADD!#REF!","v":{"$error":"#REF!"}},{"$f":"Redd_Cptes_PADD!#REF!","v":{"$error":"#REF!"}},{"$f":"Redd_Cptes_PADD!#REF!","v":{"$error":"#REF!"}},{"$f":"Redd_Cptes_PADD!#REF!","v":{"$error":"#REF!"}},{"$f":"Redd_Cptes_PADD!#REF!","v":{"$error":"#REF!"}},{"$f":"Redd_Cptes_PADD!#REF!","v":{"$error":"#REF!"}},"Extrant",null,null,null,null,null,null,null,"NON"]
[{"$f":"Table1[CLEF_uni]","v":0},{"$f":"Redd_Cptes_PADD!#REF!","v":{"$error":"#REF!"}},{"$f":"Redd_Cptes_PADD!#REF!","v":{"$error":"#REF!"}},{"$f":"Redd_Cptes_PADD!#REF!","v":{"$error":"#REF!"}},{"$f":"Redd_Cptes_PADD!#REF!","v":{"$error":"#REF!"}},{"$f":"Redd_Cptes_PADD!#REF!","v":{"$error":"#REF!"}},{"$f":"Redd_Cptes_PADD!#REF!","v":{"$error":"#REF!"}},{"$f":"Redd_Cptes_PADD!#REF!","v":{"$error":"#REF!"}},{"$f":"Redd_Cptes_PADD!#REF!","v":{"$error":"#REF!"}},{"$f":"Redd_Cptes_PADD!#REF!","v":{"$error":"#REF!"}},{"$f":"Redd_Cptes_PADD!#REF!","v":{"$error":"#REF!"}},{"$f":"Redd_Cptes_PADD!#REF!","v":{"$error":"#REF!"}},{"$f":"Redd_Cptes_PADD!#REF!","v":{"$error":"#REF!"}},"Extrant",null,null,null,null,null,null,null,"NON"]
[{"$f":"Table1[CLEF_uni]","v":0},{"$f":"Redd_Cptes_PADD!#REF!","v":{"$error":"#REF!"}},{"$f":"Redd_Cptes_PADD!#REF!","v":{"$error":"#REF!"}},{"$f":"Redd_Cptes_PADD!#REF!","v":{"$error":"#REF!"}},{"$f":"Redd_Cptes_PADD!#REF!","v":{"$error":"#REF!"}},{"$f":"Redd_Cptes_PADD!#REF!","v":{"$error":"#REF!"}},{"$f":"Redd_Cptes_PADD!#REF!","v":{"$error":"#REF!"}},{"$f":"Redd_Cptes_PADD!#REF!","v":{"$error":"#REF!"}},{"$f":"Redd_Cptes_PADD!#REF!","v":{"$error":"#REF!"}},{"$f":"Redd_Cptes_PADD!#REF!","v":{"$error":"#REF!"}},{"$f":"Redd_Cptes_PADD!#REF!","v":{"$error":"#REF!"}},{"$f":"Redd_Cptes_PADD!#REF!","v":{"$error":"#REF!"}},{"$f":"Redd_Cptes_PADD!#REF!","v":{"$error":"#REF!"}},"Extrant",null,null,null,null,null,null,null,"NON"]
[{"$f":"Table1[CLEF_uni]","v":0},{"$f":"Redd_Cptes_PADD!#REF!","v":{"$error":"#REF!"}},{"$f":"Redd_Cptes_PADD!#REF!","v":{"$error":"#REF!"}},{"$f":"Redd_Cptes_PADD!#REF!","v":{"$error":"#REF!"}},{"$f":"Redd_Cptes_PADD!#REF!","v":{"$error":"#REF!"}},{"$f":"Redd_Cptes_PADD!#REF!","v":{"$error":"#REF!"}},{"$f":"Redd_Cptes_PADD!#REF!","v":{"$error":"#REF!"}},{"$f":"Redd_Cptes_PADD!#REF!","v":{"$error":"#REF!"}},{"$f":"Redd_Cptes_PADD!#REF!","v":{"$error":"#REF!"}},{"$f":"Redd_Cptes_PADD!#REF!","v":{"$error":"#REF!"}},{"$f":"Redd_Cptes_PADD!#REF!","v":{"$error":"#REF!"}},{"$f":"Redd_Cptes_PADD!#REF!","v":{"$error":"#REF!"}},{"$f":"Redd_Cptes_PADD!#REF!","v":{"$error":"#REF!"}},"Intrant",null,null,null,null,null,null,null,"NON"]
[{"$f":"Table1[CLEF_uni]","v":0},{"$f":"Redd_Cptes_PADD!#REF!","v":{"$error":"#REF!"}},{"$f":"Redd_Cptes_PADD!#REF!","v":{"$error":"#REF!"}},{"$f":"Redd_Cptes_PADD!#REF!","v":{"$error":"#REF!"}},{"$f":"Redd_Cptes_PADD!#REF!","v":{"$error":"#REF!"}},{"$f":"Redd_Cptes_PADD!#REF!","v":{"$error":"#REF!"}},{"$f":"Redd_Cptes_PADD!#REF!","v":{"$error":"#REF!"}},{"$f":"Redd_Cptes_PADD!#REF!","v":{"$error":"#REF!"}},{"$f":"Redd_Cptes_PADD!#REF!","v":{"$error":"#REF!"}},{"$f":"Redd_Cptes_PADD!#REF!","v":{"$error":"#REF!"}},{"$f":"Redd_Cptes_PADD!#REF!","v":{"$error":"#REF!"}},{"$f":"Redd_Cptes_PADD!#REF!","v":{"$error":"#REF!"}},{"$f":"Redd_Cptes_PADD!#REF!","v":{"$error":"#REF!"}},"Intrant",null,null,null,null,null,null,null,"NON"]
[{"$f":"Table1[CLEF_uni]","v":0},{"$f":"Redd_Cptes_PADD!#REF!","v":{"$error":"#REF!"}},{"$f":"Redd_Cptes_PADD!#REF!","v":{"$error":"#REF!"}},{"$f":"Redd_Cptes_PADD!#REF!","v":{"$error":"#REF!"}},{"$f":"Redd_Cptes_PADD!#REF!","v":{"$error":"#REF!"}},{"$f":"Redd_Cptes_PADD!#REF!","v":{"$error":"#REF!"}},{"$f":"Redd_Cptes_PADD!#REF!","v":{"$error":"#REF!"}},{"$f":"Redd_Cptes_PADD!#REF!","v":{"$error":"#REF!"}},{"$f":"Redd_Cptes_PADD!#REF!","v":{"$error":"#REF!"}},{"$f":"Redd_Cptes_PADD!#REF!","v":{"$error":"#REF!"}},{"$f":"Redd_Cptes_PADD!#REF!","v":{"$error":"#REF!"}},{"$f":"Redd_Cptes_PADD!#REF!","v":{"$error":"#REF!"}},{"$f":"Redd_Cptes_PADD!#REF!","v":{"$error":"#REF!"}},"Effet-impact",null,null,null,null,null,null,null,"NON"]
[{"$f":"Table1[CLEF_uni]","v":0},{"$f":"Redd_Cptes_PADD!#REF!","v":{"$error":"#REF!"}},{"$f":"Redd_Cptes_PADD!#REF!","v":{"$error":"#REF!"}},{"$f":"Redd_Cptes_PADD!#REF!","v":{"$error":"#REF!"}},{"$f":"Redd_Cptes_PADD!#REF!","v":{"$error":"#REF!"}},{"$f":"Redd_Cptes_PADD!#REF!","v":{"$error":"#REF!"}},{"$f":"Redd_Cptes_PADD!#REF!","v":{"$error":"#REF!"}},{"$f":"Redd_Cptes_PADD!#REF!","v":{"$error":"#REF!"}},{"$f":"Redd_Cptes_PADD!#REF!","v":{"$error":"#REF!"}},{"$f":"Redd_Cptes_PADD!#REF!","v":{"$error":"#REF!"}},{"$f":"Redd_Cptes_PADD!#REF!","v":{"$error":"#REF!"}},{"$f":"Redd_Cptes_PADD!#REF!","v":{"$error":"#REF!"}},{"$f":"Redd_Cptes_PADD!#REF!","v":{"$error":"#REF!"}},"Intrant",null,null,null,null,null,null,null,"NON"]
[{"$f":"Table1[CLEF_uni]","v":0},{"$f":"Redd_Cptes_PADD!#REF!","v":{"$error":"#REF!"}},{"$f":"Redd_Cptes_PADD!#REF!","v":{"$error":"#REF!"}},{"$f":"Redd_Cptes_PADD!#REF!","v":{"$error":"#REF!"}},{"$f":"Redd_Cptes_PADD!#REF!","v":{"$error":"#REF!"}},{"$f":"Redd_Cptes_PADD!#REF!","v":{"$error":"#REF!"}},{"$f":"Redd_Cptes_PADD!#REF!","v":{"$error":"#REF!"}},{"$f":"Redd_Cptes_PADD!#REF!","v":{"$error":"#REF!"}},{"$f":"Redd_Cptes_PADD!#REF!","v":{"$error":"#REF!"}},{"$f":"Redd_Cptes_PADD!#REF!","v":{"$error":"#REF!"}},{"$f":"Redd_Cptes_PADD!#REF!","v":{"$error":"#REF!"}},{"$f":"Redd_Cptes_PADD!#REF!","v":{"$error":"#REF!"}},{"$f":"Redd_Cptes_PADD!#REF!","v":{"$error":"#REF!"}},"Intrant",null,null,null,null,null,null,null,"NON"]
[{"$f":"Table1[CLEF_uni]","v":0},{"$f":"Redd_Cptes_PADD!#REF!","v":{"$error":"#REF!"}},{"$f":"Redd_Cptes_PADD!#REF!","v":{"$error":"#REF!"}},{"$f":"Redd_Cptes_PADD!#REF!","v":{"$error":"#REF!"}},{"$f":"Redd_Cptes_PADD!#REF!","v":{"$error":"#REF!"}},{"$f":"Redd_Cptes_PADD!#REF!","v":{"$error":"#REF!"}},{"$f":"Redd_Cptes_PADD!#REF!","v":{"$error":"#REF!"}},{"$f":"Redd_Cptes_PADD!#REF!","v":{"$error":"#REF!"}},{"$f":"Redd_Cptes_PADD!#REF!","v":{"$error":"#REF!"}},{"$f":"Redd_Cptes_PADD!#REF!","v":{"$error":"#REF!"}},{"$f":"Redd_Cptes_PADD!#REF!","v":{"$error":"#REF!"}},{"$f":"Redd_Cptes_PADD!#REF!","v":{"$error":"#REF!"}},{"$f":"Redd_Cptes_PADD!#REF!","v":{"$error":"#REF!"}},"Intrant",null,null,null,null,null,null,null,"NON"]
[{"$f":"Table1[CLEF_uni]","v":0},{"$f":"Redd_Cptes_PADD!#REF!","v":{"$error":"#REF!"}},{"$f":"Redd_Cptes_PADD!#REF!","v":{"$error":"#REF!"}},{"$f":"Redd_Cptes_PADD!#REF!","v":{"$error":"#REF!"}},{"$f":"Redd_Cptes_PADD!#REF!","v":{"$error":"#REF!"}},{"$f":"Redd_Cptes_PADD!#REF!","v":{"$error":"#REF!"}},{"$f":"Redd_Cptes_PADD!#REF!","v":{"$error":"#REF!"}},{"$f":"Redd_Cptes_PADD!#REF!","v":{"$error":"#REF!"}},{"$f":"Redd_Cptes_PADD!#REF!","v":{"$error":"#REF!"}},{"$f":"Redd_Cptes_PADD!#REF!","v":{"$error":"#REF!"}},{"$f":"Redd_Cptes_PADD!#REF!","v":{"$error":"#REF!"}},{"$f":"Redd_Cptes_PADD!#REF!","v":{"$error":"#REF!"}},{"$f":"Redd_Cptes_PADD!#REF!","v":{"$error":"#REF!"}},null,null,null,null,null,null,null,null,"NON"]
[{"$f":"Table1[CLEF_uni]","v":0},{"$f":"Redd_Cptes_PADD!#REF!","v":{"$error":"#REF!"}},{"$f":"Redd_Cptes_PADD!#REF!","v":{"$error":"#REF!"}},{"$f":"Redd_Cptes_PADD!#REF!","v":{"$error":"#REF!"}},{"$f":"Redd_Cptes_PADD!#REF!","v":{"$error":"#REF!"}},{"$f":"Redd_Cptes_PADD!#REF!","v":{"$error":"#REF!"}},{"$f":"Redd_Cptes_PADD!#REF!","v":{"$error":"#REF!"}},{"$f":"Redd_Cptes_PADD!#REF!","v":{"$error":"#REF!"}},{"$f":"Redd_Cptes_PADD!#REF!","v":{"$error":"#REF!"}},{"$f":"Redd_Cptes_PADD!#REF!","v":{"$error":"#REF!"}},{"$f":"Redd_Cptes_PADD!#REF!","v":{"$error":"#REF!"}},{"$f":"Redd_Cptes_PADD!#REF!","v":{"$error":"#REF!"}},{"$f":"Redd_Cptes_PADD!#REF!","v":{"$error":"#REF!"}},null,null,null,null,null,null,null,null,"NON"]
[{"$f":"Table1[CLEF_uni]","v":0},{"$f":"Redd_Cptes_PADD!#REF!","v":{"$error":"#REF!"}},{"$f":"Redd_Cptes_PADD!#REF!","v":{"$error":"#REF!"}},{"$f":"Redd_Cptes_PADD!#REF!","v":{"$error":"#REF!"}},{"$f":"Redd_Cptes_PADD!#REF!","v":{"$error":"#REF!"}},{"$f":"Redd_Cptes_PADD!#REF!","v":{"$error":"#REF!"}},{"$f":"Redd_Cptes_PADD!#REF!","v":{"$error":"#REF!"}},{"$f":"Redd_Cptes_PADD!#REF!","v":{"$error":"#REF!"}},{"$f":"Redd_Cptes_PADD!#REF!","v":{"$error":"#REF!"}},{"$f":"Redd_Cptes_PADD!#REF!","v":{"$error":"#REF!"}},{"$f":"Redd_Cptes_PADD!#REF!","v":{"$error":"#REF!"}},{"$f":"Redd_Cptes_PADD!#REF!","v":{"$error":"#REF!"}},{"$f":"Redd_Cptes_PADD!#REF!","v":{"$error":"#REF!"}},null,null,null,null,null,null,null,null,"NON"]
[null,null,{"$f":"COUNTIF(C5:C29,\"<>\")","v":25},null,null,{"$f":"COUNTIF(F5:F29,\"<>\")","v":25},null,"<--- Total",null,null,null,null,"Moyenne",{"$f":"COUNTIF(N5:N29,\"Extrant*\")+COUNTIF(N5:N29,\"Effet-impact*\")","v":16},{"$f":"COUNTIF(O5:O29,\"OUI\")/(COUNTIF(O5:O29,\"OUI\")+COUNTIF(O5:O29,\"NON\"))","v":1},1,1,1,1,1,1,0.08]
[null,null,null,null,null,null,null,null,null,null,null,null,"Tolérance",2]
[]
[null,null,null,"Attentes de participation",null,null,"Pondération des critères d'analyse qualité - PADD"]
[null,null,null,null,null,null,"SMART","Indicateurs résultats","Ambition","Cibles annuelles","Sous-total","Attentes","TOTAL"]
[null,null,null,"Attentes répondues",null,null,0.25,0.3,0.25,0.2,1,null,1]
[null,null,null,"Attentes convenues",null,null,"SMART","IND_RESUL","AMB","ANN","SOUS_TOT","ATTENTES","TOT"]
[null,null,null,"Proportion",{"$f":"E35/E36","v":{"$error":"#DIV/0!"}},null,{"$f":"G35*V30","v":0.02},{"$f":"(N30/(F30-N31))*H35","v":0.20869565217391303},{"$f":"I35*P30","v":0.25},{"$f":"J35*O30","v":0.2},{"$f":"Table510[[#This Row],[ANN]]+Table510[[#This Row],[AMB]]+Table510[[#This Row],[IND_RESUL]]+Table510[[#This Row],[SMART]]","v":0.67869565217391303},{"$f":"E37","v":{"$error":"#DIV/0!"}},{"$f":"Table510[[#This Row],[ATTENTES]]*Table510[[#This Row],[SOUS_TOT]]","v":{"$error":"#DIV/0!"}}]

{"sheet":"Analyse_Atteinte","index":6,"n_rows":52,"n_cols":38,"rows_kept":52,"cut":false,"hidden":true,"merged":[[47,2,47,8],[0,0,0,37],[1,0,1,36],[32,2,32,3],[32,4,32,5],[32,6,32,7],[32,8,32,9],[32,10,32,11],[32,14,32,15],[32,12,32,13],[31,2,31,15]]}
["ANALYSE DE L'ATTEINTE DU PLAN D'ACTION DE DÉVELOPPEMENT DURABLE"]
["Plan d'action 2023-2028 de l'organisation"]
["Clef unique","№\naction","Action","Description action","№\nindicateur","Indicateur","Référence","Cible 2023-2024","Résultats et synthèse des activités 2023-2024","Détail des activités réalisées au cours de l'année 2023-2024","État de l'engagement 2023-2024","Pourcentage d'atteinte de la cible 2023-2024","Cible 2024-2025","Résultats et synthèse des activités  2024-2025\n(Max 20 mots/ 125 caractères)  ","Détail des activités réalisées au cours de l'année 2024-2025\n (Max 65 mots/400 caractères) ","État de l'engagement 2024-2025","Pourcentage d'atteinte de la cible 2024-2025","Cible 2025-2026","Résultats et synthèse des activités  2025-2026\n(Max 20 mots/ 125 caractères)  ","Détail des activités réalisées au cours de l'année 2025-2026\n (Max 65 mots/400 caractères) ","État de l'engagement 2025-2026","Pourcentage d'atteinte de la cible 2025-2026","Cible 2026-2027","Résultats et synthèse des activités  2026-2027\n(Max 20 mots/ 125 caractères)  ","Détail des activités réalisées au cours de l'année 2026-2027\n (Max 65 mots/400 caractères) ","État de l'engagement 2026-2027","Pourcentage d'atteinte de la cible 2026-2027","Cible 2027-2028","Résultats et synthèse des activités  2027-2028\n(Max 20 mots/ 125 caractères)  ","Détail des activités réalisées au cours de l'année 2027-2028\n (Max 65 mots/400 caractères) ","État de l'engagement 2027-2028","Pourcentage d'atteinte de la cible 2027-2028","Cible 2028-2029","Résultats et synthèse des activités  2028-2029\n(Max 20 mots/ 125 caractères)  ","Détail des activités réalisées au cours de l'année 2028-2029\n (Max 65 mots/400 caractères) ","État de l'engagement 2028-2029","Pourcentage d'atteinte de la cible 2028-2029","Commentaires"]
["CLEF_uni","No_ACT","LIB_ACT","DES_ACT","No_IND","Lib_IND","Ref","CIB_24",null,null,null,null,"CIB_25",null,null,null,null,"CIB_26",null,null,null,null,"CIB_27",null,null,null,null,"CIB_28",null,null,null,null,"CIB_29",null,null,null,null,"COM"]
[{"$f":"Table1[CLEF_uni]","v":0},{"$f":"Redd_Cptes_PADD!#REF!","v":{"$error":"#REF!"}},{"$f":"Redd_Cptes_PADD!#REF!","v":{"$error":"#REF!"}},{"$f":"Redd_Cptes_PADD!#REF!","v":{"$error":"#REF!"}},{"$f":"Redd_Cptes_PADD!#REF!","v":{"$error":"#REF!"}},{"$f":"Redd_Cptes_PADD!#REF!","v":{"$error":"#REF!"}},{"$f":"Redd_Cptes_PADD!#REF!","v":{"$error":"#REF!"}},{"$f":"Redd_Cptes_PADD!#REF!","v":{"$error":"#REF!"}},{"$f":"Redd_Cptes_PADD!#REF!","v":{"$error":"#REF!"}},{"$f":"Redd_Cptes_PADD!#REF!","v":{"$error":"#REF!"}},{"$f":"Redd_Cptes_PADD!#REF!","v":{"$error":"#REF!"}},{"$f":"Redd_Cptes_PADD!#REF!","v":{"$error":"#REF!"}},{"$f":"Redd_Cptes_PADD!#REF!","v":{"$error":"#REF!"}},{"$f":"Redd_Cptes_PADD!#REF!","v":{"$error":"#REF!"}},{"$f":"Redd_Cptes_PADD!#REF!","v":{"$error":"#REF!"}},{"$f":"Redd_Cptes_PADD!#REF!","v":{"$error":"#REF!"}},{"$f":"Redd_Cptes_PADD!#REF!","v":{"$error":"#REF!"}},{"$f":"Redd_Cptes_PADD!#REF!","v":{"$error":"#REF!"}},{"$f":"Redd_Cptes_PADD!#REF!","v":{"$error":"#REF!"}},{"$f":"Redd_Cptes_PADD!#REF!","v":{"$error":"#REF!"}},{"$f":"Redd_Cptes_PADD!#REF!","v":{"$error":"#REF!"}},{"$f":"Redd_Cptes_PADD!#REF!","v":{"$error":"#REF!"}},{"$f":"Redd_Cptes_PADD!#REF!","v":{"$error":"#REF!"}},{"$f":"Redd_Cptes_PADD!#REF!","v":{"$error":"#REF!"}},{"$f":"Redd_Cptes_PADD!#REF!","v":{"$error":"#REF!"}},{"$f":"Redd_Cptes_PADD!#REF!","v":{"$error":"#REF!"}},{"$f":"Redd_Cptes_PADD!#REF!","v":{"$error":"#REF!"}},{"$f":"Redd_Cptes_PADD!#REF!","v":{"$error":"#REF!"}},{"$f":"Redd_Cptes_PADD!#REF!","v":{"$error":"#REF!"}},{"$f":"Redd_Cptes_PADD!#REF!","v":{"$error":"#REF!"}},{"$f":"Redd_Cptes_PADD!#REF!","v":{"$error":"#REF!"}},{"$f":"Redd_Cptes_PADD!#REF!","v":{"$error":"#REF!"}},{"$f":"Redd_Cptes_PADD!#REF!","v":{"$error":"#REF!"}},{"$f":"Redd_Cptes_PADD!#REF!","v":{"$error":"#REF!"}},{"$f":"Redd_Cptes_PADD!#REF!","v":{"$error":"#REF!"}},{"$f":"Redd_Cptes_PADD!#REF!","v":{"$error":"#REF!"}},{"$f":"Redd_Cptes_PADD!#REF!","v":{"$error":"#REF!"}}]
[{"$f":"Table1[CLEF_uni]","v":0},{"$f":"Redd_Cptes_PADD!G3","v":1},{"$f":"Redd_Cptes_PADD!H3","v":"Assurer le développement des compétences vertes \n "},{"$f":"Redd_Cptes_PADD!I3","v":"Identifier les impacts de la transition socio-écologique, notamment la transition climatique, sur l’emploi \net les compétences des travailleurs de leurs secteurs d’activité, et répondre à cet enjeu par leurs \npolitiques publiques et leurs programmes"},{"$f":"Redd_Cptes_PADD!J3","v":"1.1"},{"$f":"Redd_Cptes_PADD!K3","v":"Nombre d'actions réalisées par LOJIQ autour du développement durable "},{"$f":"Redd_Cptes_PADD!L3","v":"N/A"},{"$f":"Redd_Cptes_PADD!M3","v":10},{"$f":"Redd_Cptes_PADD!S3","v":"Inscrire le résultat"},{"$f":"Redd_Cptes_PADD!T3","v":"Inscrire les détails"},{"$f":"Redd_Cptes_PADD!U3","v":"NON ATTEINT- Débuté"},{"$f":"Redd_Cptes_PADD!V3","v":0},{"$f":"Redd_Cptes_PADD!N3","v":14},{"$f":"Redd_Cptes_PADD!X3","v":"Inscrire le résultat"},{"$f":"Redd_Cptes_PADD!Y3","v":"Inscrire les détails"},{"$f":"Redd_Cptes_PADD!Z3","v":"ATTEINT"},{"$f":"Redd_Cptes_PADD!AA3","v":0},{"$f":"Redd_Cptes_PADD!O3","v":16},{"$f":"Redd_Cptes_PADD!AC3","v":"Inscrire le résultat"},{"$f":"Redd_Cptes_PADD!AD3","v":"Inscrire les détails"},{"$f":"Redd_Cptes_PADD!AE3","v":"ATTEINT"},{"$f":"Redd_Cptes_PADD!AF3","v":0},{"$f":"Redd_Cptes_PADD!P3","v":18},{"$f":"Redd_Cptes_PADD!AH3","v":"Inscrire le résultat"},{"$f":"Redd_Cptes_PADD!AI3","v":"Inscrire les détails"},{"$f":"Redd_Cptes_PADD!AJ3","v":"ATTEINT"},{"$f":"Redd_Cptes_PADD!AK3","v":0},{"$f":"Redd_Cptes_PADD!Q3","v":20},{"$f":"Redd_Cptes_PADD!AM3","v":"Inscrire le résultat"},{"$f":"Redd_Cptes_PADD!AN3","v":"Inscrire les détails"},{"$f":"Redd_Cptes_PADD!AO3","v":"ATTEINT"},{"$f":"Redd_Cptes_PADD!AP3","v":0},{"$f":"Redd_Cptes_PADD!R3","v":0},{"$f":"Redd_Cptes_PADD!AR3","v":"Inscrire le résultat"},{"$f":"Redd_Cptes_PADD!AS3","v":"Inscrire les détails"},{"$f":"Redd_Cptes_PADD!AT3","v":"ATTEINT"},{"$f":"Redd_Cptes_PADD!AU3","v":0}]
[{"$f":"Table1[CLEF_uni]","v":0},{"$f":"Redd_Cptes_PADD!G4","v":2},{"$f":"Redd_Cptes_PADD!H4","v":"Soutenir les groupes communautaires et les entreprises en économie sociale "},{"$f":"Redd_Cptes_PADD!I4","v":"Établir les retombées de la transition socio-écologique sur leur clientèle et sur les services qui lui sont \nofferts afin de les adapter. Il est également attendu qu’ils appuient les organismes qui contribuent à \nl’inclusion sociale et économique, car ceux-ci jouent un rôle essentiel dans cette transition. "},{"$f":"Redd_Cptes_PADD!J4","v":"2.1"},{"$f":"Redd_Cptes_PADD!K4","v":"Nombre d’actions visant à soutenir les entreprises en économie sociale et les groupes communautaires"},{"$f":"Redd_Cptes_PADD!L4","v":"N/A"},{"$f":"Redd_Cptes_PADD!M4","v":6},{"$f":"Redd_Cptes_PADD!S4","v":"Inscrire le résultat"},{"$f":"Redd_Cptes_PADD!T4","v":"Inscrire les détails"},{"$f":"Redd_Cptes_PADD!U4","v":"NON ATTEINT- Débuté"},{"$f":"Redd_Cptes_PADD!V4","v":0},{"$f":"Redd_Cptes_PADD!N4","v":10},{"$f":"Redd_Cptes_PADD!X4","v":"Inscrire le résultat"},{"$f":"Redd_Cptes_PADD!Y4","v":"Inscrire les détails"},{"$f":"Redd_Cptes_PADD!Z4","v":"ATTEINT"},{"$f":"Redd_Cptes_PADD!AA4","v":0},{"$f":"Redd_Cptes_PADD!O4","v":12},{"$f":"Redd_Cptes_PADD!AC4","v":"Inscrire le résultat"},{"$f":"Redd_Cptes_PADD!AD4","v":"Inscrire les détails"},{"$f":"Redd_Cptes_PADD!AE4","v":"NON ATTEINT- Débuté"},{"$f":"Redd_Cptes_PADD!AF4","v":0.65},{"$f":"Redd_Cptes_PADD!P4","v":15},{"$f":"Redd_Cptes_PADD!AH4","v":"Inscrire le résultat"},{"$f":"Redd_Cptes_PADD!AI4","v":"Inscrire les détails"},{"$f":"Redd_Cptes_PADD!AJ4","v":"ATTEINT"},{"$f":"Redd_Cptes_PADD!AK4","v":0},{"$f":"Redd_Cptes_PADD!Q4","v":18},{"$f":"Redd_Cptes_PADD!AM4","v":"Inscrire le résultat"},{"$f":"Redd_Cptes_PADD!AN4","v":"Inscrire les détails"},{"$f":"Redd_Cptes_PADD!AO4","v":"ATTEINT"},{"$f":"Redd_Cptes_PADD!AP4","v":0},{"$f":"Redd_Cptes_PADD!R4","v":0},{"$f":"Redd_Cptes_PADD!AR4","v":"Inscrire le résultat"},{"$f":"Redd_Cptes_PADD!AS4","v":"Inscrire les détails"},{"$f":"Redd_Cptes_PADD!AT4","v":"NON ATTEINT- Débuté"},{"$f":"Redd_Cptes_PADD!AU4","v":0.77}]
[{"$f":"Table1[CLEF_uni]","v":0},{"$f":"Redd_Cptes_PADD!G5","v":1},{"$f":"Redd_Cptes_PADD!H5","v":"Favoriser la cohésion sociale par le dialogue culturel "},{"$f":"Redd_Cptes_PADD!I5","v":"Inclure les questions relatives à l’égalité entre les sexes, à l’équité et à la diversité dans leurs lois, politiques \npubliques et programmes et qu’ils mobilisent leurs partenaires privés et publics sur cet enjeu. Il est aussi attendu qu’ils mettent en valeur l’apport socioculturel des jeunes, des femmes, \ndes Autochtones et des personnes issues de la diversité à société québécoise."},{"$f":"Redd_Cptes_PADD!J5","v":"1.1"},0,{"$f":"Redd_Cptes_PADD!L5","v":1},{"$f":"Redd_Cptes_PADD!M5","v":1},{"$f":"Redd_Cptes_PADD!S5","v":"Inscrire le résultat"},{"$f":"Redd_Cptes_PADD!T5","v":"Inscrire les détails"},{"$f":"Redd_Cptes_PADD!U5","v":"NON ATTEINT- Débuté"},{"$f":"Redd_Cptes_PADD!V5","v":0},{"$f":"Redd_Cptes_PADD!N5","v":1},{"$f":"Redd_Cptes_PADD!X5","v":"Inscrire le résultat"},{"$f":"Redd_Cptes_PADD!Y5","v":"Inscrire les détails"},{"$f":"Redd_Cptes_PADD!Z5","v":"ATTEINT"},{"$f":"Redd_Cptes_PADD!AA5","v":0},{"$f":"Redd_Cptes_PADD!O5","v":1},{"$f":"Redd_Cptes_PADD!AC5","v":"Inscrire le résultat"},{"$f":"Redd_Cptes_PADD!AD5","v":"Inscrire les détails"},{"$f":"Redd_Cptes_PADD!AE5","v":"NON ATTEINT- Débuté"},{"$f":"Redd_Cptes_PADD!AF5","v":0.8},{"$f":"Redd_Cptes_PADD!P5","v":1},{"$f":"Redd_Cptes_PADD!AH5","v":"Inscrire le résultat"},{"$f":"Redd_Cptes_PADD!AI5","v":"Inscrire les détails"},{"$f":"Redd_Cptes_PADD!AJ5","v":"NON ATTEINT- Débuté"},{"$f":"Redd_Cptes_PADD!AK5","v":0.98},{"$f":"Redd_Cptes_PADD!Q5","v":1},{"$f":"Redd_Cptes_PADD!AM5","v":"Inscrire le résultat"},{"$f":"Redd_Cptes_PADD!AN5","v":"Inscrire les détails"},{"$f":"Redd_Cptes_PADD!AO5","v":"ATTEINT"},{"$f":"Redd_Cptes_PADD!AP5","v":0},{"$f":"Redd_Cptes_PADD!R5","v":0},{"$f":"Redd_Cptes_PADD!AR5","v":"Inscrire le résultat"},{"$f":"Redd_Cptes_PADD!AS5","v":"Inscrire les détails"},{"$f":"Redd_Cptes_PADD!AT5","v":"NON ATTEINT- Débuté"},{"$f":"Redd_Cptes_PADD!AU5","v":0.88}]
[{"$f":"Table1[CLEF_uni]","v":0},{"$f":"Redd_Cptes_PADD!G6","v":"2"},{"$f":"Redd_Cptes_PADD!H6","v":"Appuyer l’entrepreneuriat des femmes, des autochtones et des personnes issues de la diversité "},{"$f":"Redd_Cptes_PADD!I6","v":"Encourager l’entrepreneuriat des femmes, des \nAutochtones et des personnes issues de la diversité en portant une attention particulière aux jeunes. Ils \nsont aussi appelés à soutenir l’intégration au marché du travail de ces personnes et le développement \nde milieux de travail sécuritaires et inclusifs pour tous."},{"$f":"Redd_Cptes_PADD!J6","v":"2.1"},0,{"$f":"Redd_Cptes_PADD!L6","v":"N/A"},{"$f":"Redd_Cptes_PADD!M6","v":2},{"$f":"Redd_Cptes_PADD!S6","v":"Inscrire le résultat"},{"$f":"Redd_Cptes_PADD!T6","v":"Inscrire les détails"},{"$f":"Redd_Cptes_PADD!U6","v":"NON ATTEINT- Débuté"},{"$f":"Redd_Cptes_PADD!V6","v":0},{"$f":"Redd_Cptes_PADD!N6","v":3},{"$f":"Redd_Cptes_PADD!X6","v":"Inscrire le résultat"},{"$f":"Redd_Cptes_PADD!Y6","v":"Inscrire les détails"},{"$f":"Redd_Cptes_PADD!Z6","v":"ATTEINT"},{"$f":"Redd_Cptes_PADD!AA6","v":0},{"$f":"Redd_Cptes_PADD!O6","v":3},{"$f":"Redd_Cptes_PADD!AC6","v":"Inscrire le résultat"},{"$f":"Redd_Cptes_PADD!AD6","v":"Inscrire les détails"},{"$f":"Redd_Cptes_PADD!AE6","v":"NON ATTEINT- Débuté"},{"$f":"Redd_Cptes_PADD!AF6","v":0.9},{"$f":"Redd_Cptes_PADD!P6","v":4},{"$f":"Redd_Cptes_PADD!AH6","v":"Inscrire le résultat"},{"$f":"Redd_Cptes_PADD!AI6","v":"Inscrire les détails"},{"$f":"Redd_Cptes_PADD!AJ6","v":"NON ATTEINT- Débuté"},{"$f":"Redd_Cptes_PADD!AK6","v":0.77},{"$f":"Redd_Cptes_PADD!Q6","v":4},{"$f":"Redd_Cptes_PADD!AM6","v":"Inscrire le résultat"},{"$f":"Redd_Cptes_PADD!AN6","v":"Inscrire les détails"},{"$f":"Redd_Cptes_PADD!AO6","v":"ATTEINT"},{"$f":"Redd_Cptes_PADD!AP6","v":0},{"$f":"Redd_Cptes_PADD!R6","v":0},{"$f":"Redd_Cptes_PADD!AR6","v":"Inscrire le résultat"},{"$f":"Redd_Cptes_PADD!AS6","v":"Inscrire les détails"},{"$f":"Redd_Cptes_PADD!AT6","v":"NON ATTEINT- Débuté"},{"$f":"Redd_Cptes_PADD!AU6","v":0.99}]
[{"$f":"Table1[CLEF_uni]","v":0},{"$f":"Redd_Cptes_PADD!#REF!","v":{"$error":"#REF!"}},{"$f":"Redd_Cptes_PADD!#REF!","v":{"$error":"#REF!"}},{"$f":"Redd_Cptes_PADD!#REF!","v":{"$error":"#REF!"}},{"$f":"Redd_Cptes_PADD!#REF!","v":{"$error":"#REF!"}},0,{"$f":"Redd_Cptes_PADD!#REF!","v":{"$error":"#REF!"}},{"$f":"Redd_Cptes_PADD!#REF!","v":{"$error":"#REF!"}},{"$f":"Redd_Cptes_PADD!#REF!","v":{"$error":"#REF!"}},{"$f":"Redd_Cptes_PADD!#REF!","v":{"$error":"#REF!"}},{"$f":"Redd_Cptes_PADD!#REF!","v":{"$error":"#REF!"}},{"$f":"Redd_Cptes_PADD!#REF!","v":{"$error":"#REF!"}},{"$f":"Redd_Cptes_PADD!#REF!","v":{"$error":"#REF!"}},{"$f":"Redd_Cptes_PADD!#REF!","v":{"$error":"#REF!"}},{"$f":"Redd_Cptes_PADD!#REF!","v":{"$error":"#REF!"}},{"$f":"Redd_Cptes_PADD!#REF!","v":{"$error":"#REF!"}},{"$f":"Redd_Cptes_PADD!#REF!","v":{"$error":"#REF!"}},{"$f":"Redd_Cptes_PADD!#REF!","v":{"$error":"#REF!"}},{"$f":"Redd_Cptes_PADD!#REF!","v":{"$error":"#REF!"}},{"$f":"Redd_Cptes_PADD!#REF!","v":{"$error":"#REF!"}},{"$f":"Redd_Cptes_PADD!#REF!","v":{"$error":"#REF!"}},{"$f":"Redd_Cptes_PADD!#REF!","v":{"$error":"#REF!"}},{"$f":"Redd_Cptes_PADD!#REF!","v":{"$error":"#REF!"}},{"$f":"Redd_Cptes_PADD!#REF!","v":{"$error":"#REF!"}},{"$f":"Redd_Cptes_PADD!#REF!","v":{"$error":"#REF!"}},{"$f":"Redd_Cptes_PADD!#REF!","v":{"$error":"#REF!"}},{"$f":"Redd_Cptes_PADD!#REF!","v":{"$error":"#REF!"}},{"$f":"Redd_Cptes_PADD!#REF!","v":{"$error":"#REF!"}},{"$f":"Redd_Cptes_PADD!#REF!","v":{"$error":"#REF!"}},{"$f":"Redd_Cptes_PADD!#REF!","v":{"$error":"#REF!"}},{"$f":"Redd_Cptes_PADD!#REF!","v":{"$error":"#REF!"}},{"$f":"Redd_Cptes_PADD!#REF!","v":{"$error":"#REF!"}},{"$f":"Redd_Cptes_PADD!#REF!","v":{"$error":"#REF!"}},{"$f":"Redd_Cptes_PADD!#REF!","v":{"$error":"#REF!"}},{"$f":"Redd_Cptes_PADD!#REF!","v":{"$error":"#REF!"}},{"$f":"Redd_Cptes_PADD!#REF!","v":{"$error":"#REF!"}},{"$f":"Redd_Cptes_PADD!#REF!","v":{"$error":"#REF!"}}]
[{"$f":"Table1[CLEF_uni]","v":0},{"$f":"Redd_Cptes_PADD!#REF!","v":{"$error":"#REF!"}},{"$f":"Redd_Cptes_PADD!#REF!","v":{"$error":"#REF!"}},{"$f":"Redd_Cptes_PADD!#REF!","v":{"$error":"#REF!"}},{"$f":"Redd_Cptes_PADD!#REF!","v":{"$error":"#REF!"}},0,{"$f":"Redd_Cptes_PADD!#REF!","v":{"$error":"#REF!"}},{"$f":"Redd_Cptes_PADD!#REF!","v":{"$error":"#REF!"}},{"$f":"Redd_Cptes_PADD!#REF!","v":{"$error":"#REF!"}},{"$f":"Redd_Cptes_PADD!#REF!","v":{"$error":"#REF!"}},{"$f":"Redd_Cptes_PADD!#REF!","v":{"$error":"#REF!"}},{"$f":"Redd_Cptes_PADD!#REF!","v":{"$error":"#REF!"}},{"$f":"Redd_Cptes_PADD!#REF!","v":{"$error":"#REF!"}},{"$f":"Redd_Cptes_PADD!#REF!","v":{"$error":"#REF!"}},{"$f":"Redd_Cptes_PADD!#REF!","v":{"$error":"#REF!"}},{"$f":"Redd_Cptes_PADD!#REF!","v":{"$error":"#REF!"}},{"$f":"Redd_Cptes_PADD!#REF!","v":{"$error":"#REF!"}},{"$f":"Redd_Cptes_PADD!#REF!","v":{"$error":"#REF!"}},{"$f":"Redd_Cptes_PADD!#REF!","v":{"$error":"#REF!"}},{"$f":"Redd_Cptes_PADD!#REF!","v":{"$error":"#REF!"}},{"$f":"Redd_Cptes_PADD!#REF!","v":{"$error":"#REF!"}},{"$f":"Redd_Cptes_PADD!#REF!","v":{"$error":"#REF!"}},{"$f":"Redd_Cptes_PADD!#REF!","v":{"$error":"#REF!"}},{"$f":"Redd_Cptes_PADD!#REF!","v":{"$error":"#REF!"}},{"$f":"Redd_Cptes_PADD!#REF!","v":{"$error":"#REF!"}},{"$f":"Redd_Cptes_PADD!#REF!","v":{"$error":"#REF!"}},{"$f":"Redd_Cptes_PADD!#REF!","v":{"$error":"#REF!"}},{"$f":"Redd_Cptes_PADD!#REF!","v":{"$error":"#REF!"}},{"$f":"Redd_Cptes_PADD!#REF!","v":{"$error":"#REF!"}},{"$f":"Redd_Cptes_PADD!#REF!","v":{"$error":"#REF!"}},{"$f":"Redd_Cptes_PADD!#REF!","v":{"$error":"#REF!"}},{"$f":"Redd_Cptes_PADD!#REF!","v":{"$error":"#REF!"}},{"$f":"Redd_Cptes_PADD!#REF!","v":{"$error":"#REF!"}},{"$f":"Redd_Cptes_PADD!#REF!","v":{"$error":"#REF!"}},{"$f":"Redd_Cptes_PADD!#REF!","v":{"$error":"#REF!"}},{"$f":"Redd_Cptes_PADD!#REF!","v":{"$error":"#REF!"}},{"$f":"Redd_Cptes_PADD!#REF!","v":{"$error":"#REF!"}}]
[{"$f":"Table1[CLEF_uni]","v":0},{"$f":"Redd_Cptes_PADD!G7","v":1},{"$f":"Redd_Cptes_PADD!H7","v":"Évaluer la durabilité des interventions gouvernementales "},{"$f":"Redd_Cptes_PADD!I7","v":"Accroissent le taux de leurs interventions structurantes ayant fait l’objet d’une évaluation de la durabilité \net comprenant la lutte contre les changements climatiques."},{"$f":"Redd_Cptes_PADD!J7","v":"1.1"},0,{"$f":"Redd_Cptes_PADD!L7","v":"N/A"},{"$f":"Redd_Cptes_PADD!M7","v":0.75},{"$f":"Redd_Cptes_PADD!S7","v":"Inscrire le résultat"},{"$f":"Redd_Cptes_PADD!T7","v":"Inscrire les détails"},{"$f":"Redd_Cptes_PADD!U7","v":"NON ATTEINT- Débuté"},{"$f":"Redd_Cptes_PADD!V7","v":0},{"$f":"Redd_Cptes_PADD!N7","v":0.85},{"$f":"Redd_Cptes_PADD!X7","v":"Inscrire le résultat"},{"$f":"Redd_Cptes_PADD!Y7","v":"Inscrire les détails"},{"$f":"Redd_Cptes_PADD!Z7","v":"ATTEINT"},{"$f":"Redd_Cptes_PADD!AA7","v":0},{"$f":"Redd_Cptes_PADD!O7","v":0.9},{"$f":"Redd_Cptes_PADD!AC7","v":"Inscrire le résultat"},{"$f":"Redd_Cptes_PADD!AD7","v":"Inscrire les détails"},{"$f":"Redd_Cptes_PADD!AE7","v":0},{"$f":"Redd_Cptes_PADD!AF7","v":0},{"$f":"Redd_Cptes_PADD!P7","v":0.95},{"$f":"Redd_Cptes_PADD!AH7","v":"Inscrire le résultat"},{"$f":"Redd_Cptes_PADD!AI7","v":"Inscrire les détails"},{"$f":"Redd_Cptes_PADD!AJ7","v":0},{"$f":"Redd_Cptes_PADD!AK7","v":0},{"$f":"Redd_Cptes_PADD!Q7","v":1},{"$f":"Redd_Cptes_PADD!AM7","v":"Inscrire le résultat"},{"$f":"Redd_Cptes_PADD!AN7","v":"Inscrire les détails"},{"$f":"Redd_Cptes_PADD!AO7","v":"NON ATTEINT- Débuté"},{"$f":"Redd_Cptes_PADD!AP7","v":0.98},{"$f":"Redd_Cptes_PADD!R7","v":0},{"$f":"Redd_Cptes_PADD!AR7","v":"Inscrire le résultat"},{"$f":"Redd_Cptes_PADD!AS7","v":"Inscrire les détails"},{"$f":"Redd_Cptes_PADD!AT7","v":0},{"$f":"Redd_Cptes_PADD!AU7","v":0}]
[{"$f":"Table1[CLEF_uni]","v":0},{"$f":"Redd_Cptes_PADD!#REF!","v":{"$error":"#REF!"}},{"$f":"Redd_Cptes_PADD!#REF!","v":{"$error":"#REF!"}},{"$f":"Redd_Cptes_PADD!#REF!","v":{"$error":"#REF!"}},{"$f":"Redd_Cptes_PADD!#REF!","v":{"$error":"#REF!"}},0,{"$f":"Redd_Cptes_PADD!#REF!","v":{"$error":"#REF!"}},{"$f":"Redd_Cptes_PADD!#REF!","v":{"$error":"#REF!"}},{"$f":"Redd_Cptes_PADD!#REF!","v":{"$error":"#REF!"}},{"$f":"Redd_Cptes_PADD!#REF!","v":{"$error":"#REF!"}},{"$f":"Redd_Cptes_PADD!#REF!","v":{"$error":"#REF!"}},{"$f":"Redd_Cptes_PADD!#REF!","v":{"$error":"#REF!"}},{"$f":"Redd_Cptes_PADD!#REF!","v":{"$error":"#REF!"}},{"$f":"Redd_Cptes_PADD!#REF!","v":{"$error":"#REF!"}},{"$f":"Redd_Cptes_PADD!#REF!","v":{"$error":"#REF!"}},{"$f":"Redd_Cptes_PADD!#REF!","v":{"$error":"#REF!"}},{"$f":"Redd_Cptes_PADD!#REF!","v":{"$error":"#REF!"}},{"$f":"Redd_Cptes_PADD!#REF!","v":{"$error":"#REF!"}},{"$f":"Redd_Cptes_PADD!#REF!","v":{"$error":"#REF!"}},{"$f":"Redd_Cptes_PADD!#REF!","v":{"$error":"#REF!"}},{"$f":"Redd_Cptes_PADD!#REF!","v":{"$error":"#REF!"}},{"$f":"Redd_Cptes_PADD!#REF!","v":{"$error":"#REF!"}},{"$f":"Redd_Cptes_PADD!#REF!","v":{"$error":"#REF!"}},{"$f":"Redd_Cptes_PADD!#REF!","v":{"$error":"#REF!"}},{"$f":"Redd_Cptes_PADD!#REF!","v":{"$error":"#REF!"}},{"$f":"Redd_Cptes_PADD!#REF!","v":{"$error":"#REF!"}},{"$f":"Redd_Cptes_PADD!#REF!","v":{"$error":"#REF!"}},{"$f":"Redd_Cptes_PADD!#REF!","v":{"$error":"#REF!"}},{"$f":"Redd_Cptes_PADD!#REF!","v":{"$error":"#REF!"}},{"$f":"Redd_Cptes_PADD!#REF!","v":{"$error":"#REF!"}},{"$f":"Redd_Cptes_PADD!#REF!","v":{"$error":"#REF!"}},{"$f":"Redd_Cptes_PADD!#REF!","v":{"$error":"#REF!"}},{"$f":"Redd_Cptes_PADD!#REF!","v":{"$error":"#REF!"}},{"$f":"Redd_Cptes_PADD!#REF!","v":{"$error":"#REF!"}},{"$f":"Redd_Cptes_PADD!#REF!","v":{"$error":"#REF!"}},{"$f":"Redd_Cptes_PADD!#REF!","v":{"$error":"#REF!"}},{"$f":"Redd_Cptes_PADD!#REF!","v":{"$error":"#REF!"}}]
[{"$f":"Table1[CLEF_uni]","v":0},{"$f":"Redd_Cptes_PADD!#REF!","v":{"$error":"#REF!"}},{"$f":"Redd_Cptes_PADD!#REF!","v":{"$error":"#REF!"}},{"$f":"Redd_Cptes_PADD!#REF!","v":{"$error":"#REF!"}},{"$f":"Redd_Cptes_PADD!#REF!","v":{"$error":"#REF!"}},0,{"$f":"Redd_Cptes_PADD!#REF!","v":{"$error":"#REF!"}},{"$f":"Redd_Cptes_PADD!#REF!","v":{"$error":"#REF!"}},{"$f":"Redd_Cptes_PADD!#REF!","v":{"$error":"#REF!"}},{"$f":"Redd_Cptes_PADD!#REF!","v":{"$error":"#REF!"}},{"$f":"Redd_Cptes_PADD!#REF!","v":{"$error":"#REF!"}},{"$f":"Redd_Cptes_PADD!#REF!","v":{"$error":"#REF!"}},{"$f":"Redd_Cptes_PADD!#REF!","v":{"$error":"#REF!"}},{"$f":"Redd_Cptes_PADD!#REF!","v":{"$error":"#REF!"}},{"$f":"Redd_Cptes_PADD!#REF!","v":{"$error":"#REF!"}},{"$f":"Redd_Cptes_PADD!#REF!","v":{"$error":"#REF!"}},{"$f":"Redd_Cptes_PADD!#REF!","v":{"$error":"#REF!"}},{"$f":"Redd_Cptes_PADD!#REF!","v":{"$error":"#REF!"}},{"$f":"Redd_Cptes_PADD!#REF!","v":{"$error":"#REF!"}},{"$f":"Redd_Cptes_PADD!#REF!","v":{"$error":"#REF!"}},{"$f":"Redd_Cptes_PADD!#REF!","v":{"$error":"#REF!"}},{"$f":"Redd_Cptes_PADD!#REF!","v":{"$error":"#REF!"}},{"$f":"Redd_Cptes_PADD!#REF!","v":{"$error":"#REF!"}},{"$f":"Redd_Cptes_PADD!#REF!","v":{"$error":"#REF!"}},{"$f":"Redd_Cptes_PADD!#REF!","v":{"$error":"#REF!"}},{"$f":"Redd_Cptes_PADD!#REF!","v":{"$error":"#REF!"}},{"$f":"Redd_Cptes_PADD!#REF!","v":{"$error":"#REF!"}},{"$f":"Redd_Cptes_PADD!#REF!","v":{"$error":"#REF!"}},{"$f":"Redd_Cptes_PADD!#REF!","v":{"$error":"#REF!"}},{"$f":"Redd_Cptes_PADD!#REF!","v":{"$error":"#REF!"}},{"$f":"Redd_Cptes_PADD!#REF!","v":{"$error":"#REF!"}},{"$f":"Redd_Cptes_PADD!#REF!","v":{"$error":"#REF!"}},{"$f":"Redd_Cptes_PADD!#REF!","v":{"$error":"#REF!"}},{"$f":"Redd_Cptes_PADD!#REF!","v":{"$error":"#REF!"}},{"$f":"Redd_Cptes_PADD!#REF!","v":{"$error":"#REF!"}},{"$f":"Redd_Cptes_PADD!#REF!","v":{"$error":"#REF!"}},{"$f":"Redd_Cptes_PADD!#REF!","v":{"$error":"#REF!"}}]
[{"$f":"Table1[CLEF_uni]","v":0},{"$f":"Redd_Cptes_PADD!#REF!","v":{"$error":"#REF!"}},{"$f":"Redd_Cptes_PADD!#REF!","v":{"$error":"#REF!"}},{"$f":"Redd_Cptes_PADD!#REF!","v":{"$error":"#REF!"}},{"$f":"Redd_Cptes_PADD!#REF!","v":{"$error":"#REF!"}},0,{"$f":"Redd_Cptes_PADD!#REF!","v":{"$error":"#REF!"}},{"$f":"Redd_Cptes_PADD!#REF!","v":{"$error":"#REF!"}},{"$f":"Redd_Cptes_PADD!#REF!","v":{"$error":"#REF!"}},{"$f":"Redd_Cptes_PADD!#REF!","v":{"$error":"#REF!"}},{"$f":"Redd_Cptes_PADD!#REF!","v":{"$error":"#REF!"}},{"$f":"Redd_Cptes_PADD!#REF!","v":{"$error":"#REF!"}},{"$f":"Redd_Cptes_PADD!#REF!","v":{"$error":"#REF!"}},{"$f":"Redd_Cptes_PADD!#REF!","v":{"$error":"#REF!"}},{"$f":"Redd_Cptes_PADD!#REF!","v":{"$error":"#REF!"}},{"$f":"Redd_Cptes_PADD!#REF!","v":{"$error":"#REF!"}},{"$f":"Redd_Cptes_PADD!#REF!","v":{"$error":"#REF!"}},{"$f":"Redd_Cptes_PADD!#REF!","v":{"$error":"#REF!"}},{"$f":"Redd_Cptes_PADD!#REF!","v":{"$error":"#REF!"}},{"$f":"Redd_Cptes_PADD!#REF!","v":{"$error":"#REF!"}},{"$f":"Redd_Cptes_PADD!#REF!","v":{"$error":"#REF!"}},{"$f":"Redd_Cptes_PADD!#REF!","v":{"$error":"#REF!"}},{"$f":"Redd_Cptes_PADD!#REF!","v":{"$error":"#REF!"}},{"$f":"Redd_Cptes_PADD!#REF!","v":{"$error":"#REF!"}},{"$f":"Redd_Cptes_PADD!#REF!","v":{"$error":"#REF!"}},{"$f":"Redd_Cptes_PADD!#REF!","v":{"$error":"#REF!"}},{"$f":"Redd_Cptes_PADD!#REF!","v":{"$error":"#REF!"}},{"$f":"Redd_Cptes_PADD!#REF!","v":{"$error":"#REF!"}},{"$f":"Redd_Cptes_PADD!#REF!","v":{"$error":"#REF!"}},{"$f":"Redd_Cptes_PADD!#REF!","v":{"$error":"#REF!"}},{"$f":"Redd_Cptes_PADD!#REF!","v":{"$error":"#REF!"}},{"$f":"Redd_Cptes_PADD!#REF!","v":{"$error":"#REF!"}},{"$f":"Redd_Cptes_PADD!#REF!","v":{"$error":"#REF!"}},{"$f":"Redd_Cptes_PADD!#REF!","v":{"$error":"#REF!"}},{"$f":"Redd_Cptes_PADD!#REF!","v":{"$error":"#REF!"}},{"$f":"Redd_Cptes_PADD!#REF!","v":{"$error":"#REF!"}},{"$f":"Redd_Cptes_PADD!#REF!","v":{"$error":"#REF!"}}]
[{"$f":"Table1[CLEF_uni]","v":0},{"$f":"Redd_Cptes_PADD!#REF!","v":{"$error":"#REF!"}},{"$f":"Redd_Cptes_PADD!#REF!","v":{"$error":"#REF!"}},{"$f":"Redd_Cptes_PADD!#REF!","v":{"$error":"#REF!"}},{"$f":"Redd_Cptes_PADD!#REF!","v":{"$error":"#REF!"}},0,{"$f":"Redd_Cptes_PADD!#REF!","v":{"$error":"#REF!"}},{"$f":"Redd_Cptes_PADD!#REF!","v":{"$error":"#REF!"}},{"$f":"Redd_Cptes_PADD!#REF!","v":{"$error":"#REF!"}},{"$f":"Redd_Cptes_PADD!#REF!","v":{"$error":"#REF!"}},{"$f":"Redd_Cptes_PADD!#REF!","v":{"$error":"#REF!"}},{"$f":"Redd_Cptes_PADD!#REF!","v":{"$error":"#REF!"}},{"$f":"Redd_Cptes_PADD!#REF!","v":{"$error":"#REF!"}},{"$f":"Redd_Cptes_PADD!#REF!","v":{"$error":"#REF!"}},{"$f":"Redd_Cptes_PADD!#REF!","v":{"$error":"#REF!"}},{"$f":"Redd_Cptes_PADD!#REF!","v":{"$error":"#REF!"}},{"$f":"Redd_Cptes_PADD!#REF!","v":{"$error":"#REF!"}},{"$f":"Redd_Cptes_PADD!#REF!","v":{"$error":"#REF!"}},{"$f":"Redd_Cptes_PADD!#REF!","v":{"$error":"#REF!"}},{"$f":"Redd_Cptes_PADD!#REF!","v":{"$error":"#REF!"}},{"$f":"Redd_Cptes_PADD!#REF!","v":{"$error":"#REF!"}},{"$f":"Redd_Cptes_PADD!#REF!","v":{"$error":"#REF!"}},{"$f":"Redd_Cptes_PADD!#REF!","v":{"$error":"#REF!"}},{"$f":"Redd_Cptes_PADD!#REF!","v":{"$error":"#REF!"}},{"$f":"Redd_Cptes_PADD!#REF!","v":{"$error":"#REF!"}},{"$f":"Redd_Cptes_PADD!#REF!","v":{"$error":"#REF!"}},{"$f":"Redd_Cptes_PADD!#REF!","v":{"$error":"#REF!"}},{"$f":"Redd_Cptes_PADD!#REF!","v":{"$error":"#REF!"}},{"$f":"Redd_Cptes_PADD!#REF!","v":{"$error":"#REF!"}},{"$f":"Redd_Cptes_PADD!#REF!","v":{"$error":"#REF!"}},{"$f":"Redd_Cptes_PADD!#REF!","v":{"$error":"#REF!"}},{"$f":"Redd_Cptes_PADD!#REF!","v":{"$error":"#REF!"}},{"$f":"Redd_Cptes_PADD!#REF!","v":{"$error":"#REF!"}},{"$f":"Redd_Cptes_PADD!#REF!","v":{"$error":"#REF!"}},{"$f":"Redd_Cptes_PADD!#REF!","v":{"$error":"#REF!"}},{"$f":"Redd_Cptes_PADD!#REF!","v":{"$error":"#REF!"}},{"$f":"Redd_Cptes_PADD!#REF!","v":{"$error":"#REF!"}}]
[{"$f":"Table1[CLEF_uni]","v":0},{"$f":"Redd_Cptes_PADD!#REF!","v":{"$error":"#REF!"}},{"$f":"Redd_Cptes_PADD!#REF!","v":{"$error":"#REF!"}},{"$f":"Redd_Cptes_PADD!#REF!","v":{"$error":"#REF!"}},{"$f":"Redd_Cptes_PADD!#REF!","v":{"$error":"#REF!"}},0,{"$f":"Redd_Cptes_PADD!#REF!","v":{"$error":"#REF!"}},{"$f":"Redd_Cptes_PADD!#REF!","v":{"$error":"#REF!"}},{"$f":"Redd_Cptes_PADD!#REF!","v":{"$error":"#REF!"}},{"$f":"Redd_Cptes_PADD!#REF!","v":{"$error":"#REF!"}},{"$f":"Redd_Cptes_PADD!#REF!","v":{"$error":"#REF!"}},{"$f":"Redd_Cptes_PADD!#REF!","v":{"$error":"#REF!"}},{"$f":"Redd_Cptes_PADD!#REF!","v":{"$error":"#REF!"}},{"$f":"Redd_Cptes_PADD!#REF!","v":{"$error":"#REF!"}},{"$f":"Redd_Cptes_PADD!#REF!","v":{"$error":"#REF!"}},{"$f":"Redd_Cptes_PADD!#REF!","v":{"$error":"#REF!"}},{"$f":"Redd_Cptes_PADD!#REF!","v":{"$error":"#REF!"}},{"$f":"Redd_Cptes_PADD!#REF!","v":{"$error":"#REF!"}},{"$f":"Redd_Cptes_PADD!#REF!","v":{"$error":"#REF!"}},{"$f":"Redd_Cptes_PADD!#REF!","v":{"$error":"#REF!"}},{"$f":"Redd_Cptes_PADD!#REF!","v":{"$error":"#REF!"}},{"$f":"Redd_Cptes_PADD!#REF!","v":{"$error":"#REF!"}},{"$f":"Redd_Cptes_PADD!#REF!","v":{"$error":"#REF!"}},{"$f":"Redd_Cptes_PADD!#REF!","v":{"$error":"#REF!"}},{"$f":"Redd_Cptes_PADD!#REF!","v":{"$error":"#REF!"}},{"$f":"Redd_Cptes_PADD!#REF!","v":{"$error":"#REF!"}},{"$f":"Redd_Cptes_PADD!#REF!","v":{"$error":"#REF!"}},{"$f":"Redd_Cptes_PADD!#REF!","v":{"$error":"#REF!"}},{"$f":"Redd_Cptes_PADD!#REF!","v":{"$error":"#REF!"}},{"$f":"Redd_Cptes_PADD!#REF!","v":{"$error":"#REF!"}},{"$f":"Redd_Cptes_PADD!#REF!","v":{"$error":"#REF!"}},{"$f":"Redd_Cptes_PADD!#REF!","v":{"$error":"#REF!"}},{"$f":"Redd_Cptes_PADD!#REF!","v":{"$error":"#REF!"}},{"$f":"Redd_Cptes_PADD!#REF!","v":{"$error":"#REF!"}},{"$f":"Redd_Cptes_PADD!#REF!","v":{"$error":"#REF!"}},{"$f":"Redd_Cptes_PADD!#REF!","v":{"$error":"#REF!"}},{"$f":"Redd_Cptes_PADD!#REF!","v":{"$error":"#REF!"}}]
[{"$f":"Table1[CLEF_uni]","v":0},{"$f":"Redd_Cptes_PADD!#REF!","v":{"$error":"#REF!"}},{"$f":"Redd_Cptes_PADD!#REF!","v":{"$error":"#REF!"}},{"$f":"Redd_Cptes_PADD!#REF!","v":{"$error":"#REF!"}},{"$f":"Redd_Cptes_PADD!#REF!","v":{"$error":"#REF!"}},0,{"$f":"Redd_Cptes_PADD!#REF!","v":{"$error":"#REF!"}},{"$f":"Redd_Cptes_PADD!#REF!","v":{"$error":"#REF!"}},{"$f":"Redd_Cptes_PADD!#REF!","v":{"$error":"#REF!"}},{"$f":"Redd_Cptes_PADD!#REF!","v":{"$error":"#REF!"}},{"$f":"Redd_Cptes_PADD!#REF!","v":{"$error":"#REF!"}},{"$f":"Redd_Cptes_PADD!#REF!","v":{"$error":"#REF!"}},{"$f":"Redd_Cptes_PADD!#REF!","v":{"$error":"#REF!"}},{"$f":"Redd_Cptes_PADD!#REF!","v":{"$error":"#REF!"}},{"$f":"Redd_Cptes_PADD!#REF!","v":{"$error":"#REF!"}},{"$f":"Redd_Cptes_PADD!#REF!","v":{"$error":"#REF!"}},{"$f":"Redd_Cptes_PADD!#REF!","v":{"$error":"#REF!"}},{"$f":"Redd_Cptes_PADD!#REF!","v":{"$error":"#REF!"}},{"$f":"Redd_Cptes_PADD!#REF!","v":{"$error":"#REF!"}},{"$f":"Redd_Cptes_PADD!#REF!","v":{"$error":"#REF!"}},{"$f":"Redd_Cptes_PADD!#REF!","v":{"$error":"#REF!"}},{"$f":"Redd_Cptes_PADD!#REF!","v":{"$error":"#REF!"}},{"$f":"Redd_Cptes_PADD!#REF!","v":{"$error":"#REF!"}},{"$f":"Redd_Cptes_PADD!#REF!","v":{"$error":"#REF!"}},{"$f":"Redd_Cptes_PADD!#REF!","v":{"$error":"#REF!"}},{"$f":"Redd_Cptes_PADD!#REF!","v":{"$error":"#REF!"}},{"$f":"Redd_Cptes_PADD!#REF!","v":{"$error":"#REF!"}},{"$f":"Redd_Cptes_PADD!#REF!","v":{"$error":"#REF!"}},{"$f":"Redd_Cptes_PADD!#REF!","v":{"$error":"#REF!"}},{"$f":"Redd_Cptes_PADD!#REF!","v":{"$error":"#REF!"}},{"$f":"Redd_Cptes_PADD!#REF!","v":{"$error":"#REF!"}},{"$f":"Redd_Cptes_PADD!#REF!","v":{"$error":"#REF!"}},{"$f":"Redd_Cptes_PADD!#REF!","v":{"$error":"#REF!"}},{"$f":"Redd_Cptes_PADD!#REF!","v":{"$error":"#REF!"}},{"$f":"Redd_Cptes_PADD!#REF!","v":{"$error":"#REF!"}},{"$f":"Redd_Cptes_PADD!#REF!","v":{"$error":"#REF!"}},{"$f":"Redd_Cptes_PADD!#REF!","v":{"$error":"#REF!"}}]
[{"$f":"Table1[CLEF_uni]","v":0},{"$f":"Redd_Cptes_PADD!#REF!","v":{"$error":"#REF!"}},{"$f":"Redd_Cptes_PADD!#REF!","v":{"$error":"#REF!"}},{"$f":"Redd_Cptes_PADD!#REF!","v":{"$error":"#REF!"}},{"$f":"Redd_Cptes_PADD!#REF!","v":{"$error":"#REF!"}},0,{"$f":"Redd_Cptes_PADD!#REF!","v":{"$error":"#REF!"}},{"$f":"Redd_Cptes_PADD!#REF!","v":{"$error":"#REF!"}},{"$f":"Redd_Cptes_PADD!#REF!","v":{"$error":"#REF!"}},{"$f":"Redd_Cptes_PADD!#REF!","v":{"$error":"#REF!"}},{"$f":"Redd_Cptes_PADD!#REF!","v":{"$error":"#REF!"}},{"$f":"Redd_Cptes_PADD!#REF!","v":{"$error":"#REF!"}},{"$f":"Redd_Cptes_PADD!#REF!","v":{"$error":"#REF!"}},{"$f":"Redd_Cptes_PADD!#REF!","v":{"$error":"#REF!"}},{"$f":"Redd_Cptes_PADD!#REF!","v":{"$error":"#REF!"}},{"$f":"Redd_Cptes_PADD!#REF!","v":{"$error":"#REF!"}},{"$f":"Redd_Cptes_PADD!#REF!","v":{"$error":"#REF!"}},{"$f":"Redd_Cptes_PADD!#REF!","v":{"$error":"#REF!"}},{"$f":"Redd_Cptes_PADD!#REF!","v":{"$error":"#REF!"}},{"$f":"Redd_Cptes_PADD!#REF!","v":{"$error":"#REF!"}},{"$f":"Redd_Cptes_PADD!#REF!","v":{"$error":"#REF!"}},{"$f":"Redd_Cptes_PADD!#REF!","v":{"$error":"#REF!"}},{"$f":"Redd_Cptes_PADD!#REF!","v":{"$error":"#REF!"}},{"$f":"Redd_Cptes_PADD!#REF!","v":{"$error":"#REF!"}},{"$f":"Redd_Cptes_PADD!#REF!","v":{"$error":"#REF!"}},{"$f":"Redd_Cptes_PADD!#REF!","v":{"$error":"#REF!"}},{"$f":"Redd_Cptes_PADD!#REF!","v":{"$error":"#REF!"}},{"$f":"Redd_Cptes_PADD!#REF!","v":{"$error":"#REF!"}},{"$f":"Redd_Cptes_PADD!#REF!","v":{"$error":"#REF!"}},{"$f":"Redd_Cptes_PADD!#REF!","v":{"$error":"#REF!"}},{"$f":"Redd_Cptes_PADD!#REF!","v":{"$error":"#REF!"}},{"$f":"Redd_Cptes_PADD!#REF!","v":{"$error":"#REF!"}},{"$f":"Redd_Cptes_PADD!#REF!","v":{"$error":"#REF!"}},{"$f":"Redd_Cptes_PADD!#REF!","v":{"$error":"#REF!"}},{"$f":"Redd_Cptes_PADD!#REF!","v":{"$error":"#REF!"}},{"$f":"Redd_Cptes_PADD!#REF!","v":{"$error":"#REF!"}},{"$f":"Redd_Cptes_PADD!#REF!","v":{"$error":"#REF!"}}]
[{"$f":"Table1[CLEF_uni]","v":0},{"$f":"Redd_Cptes_PADD!#REF!","v":{"$error":"#REF!"}},{"$f":"Redd_Cptes_PADD!#REF!","v":{"$error":"#REF!"}},{"$f":"Redd_Cptes_PADD!#REF!","v":{"$error":"#REF!"}},{"$f":"Redd_Cptes_PADD!#REF!","v":{"$error":"#REF!"}},0,{"$f":"Redd_Cptes_PADD!#REF!","v":{"$error":"#REF!"}},{"$f":"Redd_Cptes_PADD!#REF!","v":{"$error":"#REF!"}},{"$f":"Redd_Cptes_PADD!#REF!","v":{"$error":"#REF!"}},{"$f":"Redd_Cptes_PADD!#REF!","v":{"$error":"#REF!"}},{"$f":"Redd_Cptes_PADD!#REF!","v":{"$error":"#REF!"}},{"$f":"Redd_Cptes_PADD!#REF!","v":{"$error":"#REF!"}},{"$f":"Redd_Cptes_PADD!#REF!","v":{"$error":"#REF!"}},{"$f":"Redd_Cptes_PADD!#REF!","v":{"$error":"#REF!"}},{"$f":"Redd_Cptes_PADD!#REF!","v":{"$error":"#REF!"}},{"$f":"Redd_Cptes_PADD!#REF!","v":{"$error":"#REF!"}},{"$f":"Redd_Cptes_PADD!#REF!","v":{"$error":"#REF!"}},{"$f":"Redd_Cptes_PADD!#REF!","v":{"$error":"#REF!"}},{"$f":"Redd_Cptes_PADD!#REF!","v":{"$error":"#REF!"}},{"$f":"Redd_Cptes_PADD!#REF!","v":{"$error":"#REF!"}},{"$f":"Redd_Cptes_PADD!#REF!","v":{"$error":"#REF!"}},{"$f":"Redd_Cptes_PADD!#REF!","v":{"$error":"#REF!"}},{"$f":"Redd_Cptes_PADD!#REF!","v":{"$error":"#REF!"}},{"$f":"Redd_Cptes_PADD!#REF!","v":{"$error":"#REF!"}},{"$f":"Redd_Cptes_PADD!#REF!","v":{"$error":"#REF!"}},{"$f":"Redd_Cptes_PADD!#REF!","v":{"$error":"#REF!"}},{"$f":"Redd_Cptes_PADD!#REF!","v":{"$error":"#REF!"}},{"$f":"Redd_Cptes_PADD!#REF!","v":{"$error":"#REF!"}},{"$f":"Redd_Cptes_PADD!#REF!","v":{"$error":"#REF!"}},{"$f":"Redd_Cptes_PADD!#REF!","v":{"$error":"#REF!"}},{"$f":"Redd_Cptes_PADD!#REF!","v":{"$error":"#REF!"}},{"$f":"Redd_Cptes_PADD!#REF!","v":{"$error":"#REF!"}},{"$f":"Redd_Cptes_PADD!#REF!","v":{"$error":"#REF!"}},{"$f":"Redd_Cptes_PADD!#REF!","v":{"$error":"#REF!"}},{"$f":"Redd_Cptes_PADD!#REF!","v":{"$error":"#REF!"}},{"$f":"Redd_Cptes_PADD!#REF!","v":{"$error":"#REF!"}},{"$f":"Redd_Cptes_PADD!#REF!","v":{"$error":"#REF!"}}]
[{"$f":"Table1[CLEF_uni]","v":0},{"$f":"Redd_Cptes_PADD!#REF!","v":{"$error":"#REF!"}},{"$f":"Redd_Cptes_PADD!#REF!","v":{"$error":"#REF!"}},{"$f":"Redd_Cptes_PADD!#REF!","v":{"$error":"#REF!"}},{"$f":"Redd_Cptes_PADD!#REF!","v":{"$error":"#REF!"}},0,{"$f":"Redd_Cptes_PADD!#REF!","v":{"$error":"#REF!"}},{"$f":"Redd_Cptes_PADD!#REF!","v":{"$error":"#REF!"}},{"$f":"Redd_Cptes_PADD!#REF!","v":{"$error":"#REF!"}},{"$f":"Redd_Cptes_PADD!#REF!","v":{"$error":"#REF!"}},{"$f":"Redd_Cptes_PADD!#REF!","v":{"$error":"#REF!"}},{"$f":"Redd_Cptes_PADD!#REF!","v":{"$error":"#REF!"}},{"$f":"Redd_Cptes_PADD!#REF!","v":{"$error":"#REF!"}},{"$f":"Redd_Cptes_PADD!#REF!","v":{"$error":"#REF!"}},{"$f":"Redd_Cptes_PADD!#REF!","v":{"$error":"#REF!"}},{"$f":"Redd_Cptes_PADD!#REF!","v":{"$error":"#REF!"}},{"$f":"Redd_Cptes_PADD!#REF!","v":{"$error":"#REF!"}},{"$f":"Redd_Cptes_PADD!#REF!","v":{"$error":"#REF!"}},{"$f":"Redd_Cptes_PADD!#REF!","v":{"$error":"#REF!"}},{"$f":"Redd_Cptes_PADD!#REF!","v":{"$error":"#REF!"}},{"$f":"Redd_Cptes_PADD!#REF!","v":{"$error":"#REF!"}},{"$f":"Redd_Cptes_PADD!#REF!","v":{"$error":"#REF!"}},{"$f":"Redd_Cptes_PADD!#REF!","v":{"$error":"#REF!"}},{"$f":"Redd_Cptes_PADD!#REF!","v":{"$error":"#REF!"}},{"$f":"Redd_Cptes_PADD!#REF!","v":{"$error":"#REF!"}},{"$f":"Redd_Cptes_PADD!#REF!","v":{"$error":"#REF!"}},{"$f":"Redd_Cptes_PADD!#REF!","v":{"$error":"#REF!"}},{"$f":"Redd_Cptes_PADD!#REF!","v":{"$error":"#REF!"}},{"$f":"Redd_Cptes_PADD!#REF!","v":{"$error":"#REF!"}},{"$f":"Redd_Cptes_PADD!#REF!","v":{"$error":"#REF!"}},{"$f":"Redd_Cptes_PADD!#REF!","v":{"$error":"#REF!"}},{"$f":"Redd_Cptes_PADD!#REF!","v":{"$error":"#REF!"}},{"$f":"Redd_Cptes_PADD!#REF!","v":{"$error":"#REF!"}},{"$f":"Redd_Cptes_PADD!#REF!","v":{"$error":"#REF!"}},{"$f":"Redd_Cptes_PADD!#REF!","v":{"$error":"#REF!"}},{"$f":"Redd_Cptes_PADD!#REF!","v":{"$error":"#REF!"}},{"$f":"Redd_Cptes_PADD!#REF!","v":{"$error":"#REF!"}}]
[{"$f":"Table1[CLEF_uni]","v":0},{"$f":"Redd_Cptes_PADD!#REF!","v":{"$error":"#REF!"}},{"$f":"Redd_Cptes_PADD!#REF!","v":{"$error":"#REF!"}},{"$f":"Redd_Cptes_PADD!#REF!","v":{"$error":"#REF!"}},{"$f":"Redd_Cptes_PADD!#REF!","v":{"$error":"#REF!"}},0,{"$f":"Redd_Cptes_PADD!#REF!","v":{"$error":"#REF!"}},{"$f":"Redd_Cptes_PADD!#REF!","v":{"$error":"#REF!"}},{"$f":"Redd_Cptes_PADD!#REF!","v":{"$error":"#REF!"}},{"$f":"Redd_Cptes_PADD!#REF!","v":{"$error":"#REF!"}},{"$f":"Redd_Cptes_PADD!#REF!","v":{"$error":"#REF!"}},{"$f":"Redd_Cptes_PADD!#REF!","v":{"$error":"#REF!"}},{"$f":"Redd_Cptes_PADD!#REF!","v":{"$error":"#REF!"}},{"$f":"Redd_Cptes_PADD!#REF!","v":{"$error":"#REF!"}},{"$f":"Redd_Cptes_PADD!#REF!","v":{"$error":"#REF!"}},{"$f":"Redd_Cptes_PADD!#REF!","v":{"$error":"#REF!"}},{"$f":"Redd_Cptes_PADD!#REF!","v":{"$error":"#REF!"}},{"$f":"Redd_Cptes_PADD!#REF!","v":{"$error":"#REF!"}},{"$f":"Redd_Cptes_PADD!#REF!","v":{"$error":"#REF!"}},{"$f":"Redd_Cptes_PADD!#REF!","v":{"$error":"#REF!"}},{"$f":"Redd_Cptes_PADD!#REF!","v":{"$error":"#REF!"}},{"$f":"Redd_Cptes_PADD!#REF!","v":{"$error":"#REF!"}},{"$f":"Redd_Cptes_PADD!#REF!","v":{"$error":"#REF!"}},{"$f":"Redd_Cptes_PADD!#REF!","v":{"$error":"#REF!"}},{"$f":"Redd_Cptes_PADD!#REF!","v":{"$error":"#REF!"}},{"$f":"Redd_Cptes_PADD!#REF!","v":{"$error":"#REF!"}},{"$f":"Redd_Cptes_PADD!#REF!","v":{"$error":"#REF!"}},{"$f":"Redd_Cptes_PADD!#REF!","v":{"$error":"#REF!"}},{"$f":"Redd_Cptes_PADD!#REF!","v":{"$error":"#REF!"}},{"$f":"Redd_Cptes_PADD!#REF!","v":{"$error":"#REF!"}},{"$f":"Redd_Cptes_PADD!#REF!","v":{"$error":"#REF!"}},{"$f":"Redd_Cptes_PADD!#REF!","v":{"$error":"#REF!"}},{"$f":"Redd_Cptes_PADD!#REF!","v":{"$error":"#REF!"}},{"$f":"Redd_Cptes_PADD!#REF!","v":{"$error":"#REF!"}},{"$f":"Redd_Cptes_PADD!#REF!","v":{"$error":"#REF!"}},{"$f":"Redd_Cptes_PADD!#REF!","v":{"$error":"#REF!"}},{"$f":"Redd_Cptes_PADD!#REF!","v":{"$error":"#REF!"}}]
[{"$f":"Table1[CLEF_uni]","v":0},{"$f":"Redd_Cptes_PADD!#REF!","v":{"$error":"#REF!"}},{"$f":"Redd_Cptes_PADD!#REF!","v":{"$error":"#REF!"}},{"$f":"Redd_Cptes_PADD!#REF!","v":{"$error":"#REF!"}},{"$f":"Redd_Cptes_PADD!#REF!","v":{"$error":"#REF!"}},0,{"$f":"Redd_Cptes_PADD!#REF!","v":{"$error":"#REF!"}},{"$f":"Redd_Cptes_PADD!#REF!","v":{"$error":"#REF!"}},{"$f":"Redd_Cptes_PADD!#REF!","v":{"$error":"#REF!"}},{"$f":"Redd_Cptes_PADD!#REF!","v":{"$error":"#REF!"}},{"$f":"Redd_Cptes_PADD!#REF!","v":{"$error":"#REF!"}},{"$f":"Redd_Cptes_PADD!#REF!","v":{"$error":"#REF!"}},{"$f":"Redd_Cptes_PADD!#REF!","v":{"$error":"#REF!"}},{"$f":"Redd_Cptes_PADD!#REF!","v":{"$error":"#REF!"}},{"$f":"Redd_Cptes_PADD!#REF!","v":{"$error":"#REF!"}},{"$f":"Redd_Cptes_PADD!#REF!","v":{"$error":"#REF!"}},{"$f":"Redd_Cptes_PADD!#REF!","v":{"$error":"#REF!"}},{"$f":"Redd_Cptes_PADD!#REF!","v":{"$error":"#REF!"}},{"$f":"Redd_Cptes_PADD!#REF!","v":{"$error":"#REF!"}},{"$f":"Redd_Cptes_PADD!#REF!","v":{"$error":"#REF!"}},{"$f":"Redd_Cptes_PADD!#REF!","v":{"$error":"#REF!"}},{"$f":"Redd_Cptes_PADD!#REF!","v":{"$error":"#REF!"}},{"$f":"Redd_Cptes_PADD!#REF!","v":{"$error":"#REF!"}},{"$f":"Redd_Cptes_PADD!#REF!","v":{"$error":"#REF!"}},{"$f":"Redd_Cptes_PADD!#REF!","v":{"$error":"#REF!"}},{"$f":"Redd_Cptes_PADD!#REF!","v":{"$error":"#REF!"}},{"$f":"Redd_Cptes_PADD!#REF!","v":{"$error":"#REF!"}},{"$f":"Redd_Cptes_PADD!#REF!","v":{"$error":"#REF!"}},{"$f":"Redd_Cptes_PADD!#REF!","v":{"$error":"#REF!"}},{"$f":"Redd_Cptes_PADD!#REF!","v":{"$error":"#REF!"}},{"$f":"Redd_Cptes_PADD!#REF!","v":{"$error":"#REF!"}},{"$f":"Redd_Cptes_PADD!#REF!","v":{"$error":"#REF!"}},{"$f":"Redd_Cptes_PADD!#REF!","v":{"$error":"#REF!"}},{"$f":"Redd_Cptes_PADD!#REF!","v":{"$error":"#REF!"}},{"$f":"Redd_Cptes_PADD!#REF!","v":{"$error":"#REF!"}},{"$f":"Redd_Cptes_PADD!#REF!","v":{"$error":"#REF!"}},{"$f":"Redd_Cptes_PADD!#REF!","v":{"$error":"#REF!"}}]
[{"$f":"Table1[CLEF_uni]","v":0},{"$f":"Redd_Cptes_PADD!#REF!","v":{"$error":"#REF!"}},{"$f":"Redd_Cptes_PADD!#REF!","v":{"$error":"#REF!"}},{"$f":"Redd_Cptes_PADD!#REF!","v":{"$error":"#REF!"}},{"$f":"Redd_Cptes_PADD!#REF!","v":{"$error":"#REF!"}},0,{"$f":"Redd_Cptes_PADD!#REF!","v":{"$error":"#REF!"}},{"$f":"Redd_Cptes_PADD!#REF!","v":{"$error":"#REF!"}},{"$f":"Redd_Cptes_PADD!#REF!","v":{"$error":"#REF!"}},{"$f":"Redd_Cptes_PADD!#REF!","v":{"$error":"#REF!"}},{"$f":"Redd_Cptes_PADD!#REF!","v":{"$error":"#REF!"}},{"$f":"Redd_Cptes_PADD!#REF!","v":{"$error":"#REF!"}},{"$f":"Redd_Cptes_PADD!#REF!","v":{"$error":"#REF!"}},{"$f":"Redd_Cptes_PADD!#REF!","v":{"$error":"#REF!"}},{"$f":"Redd_Cptes_PADD!#REF!","v":{"$error":"#REF!"}},{"$f":"Redd_Cptes_PADD!#REF!","v":{"$error":"#REF!"}},{"$f":"Redd_Cptes_PADD!#REF!","v":{"$error":"#REF!"}},{"$f":"Redd_Cptes_PADD!#REF!","v":{"$error":"#REF!"}},{"$f":"Redd_Cptes_PADD!#REF!","v":{"$error":"#REF!"}},{"$f":"Redd_Cptes_PADD!#REF!","v":{"$error":"#REF!"}},{"$f":"Redd_Cptes_PADD!#REF!","v":{"$error":"#REF!"}},{"$f":"Redd_Cptes_PADD!#REF!","v":{"$error":"#REF!"}},{"$f":"Redd_Cptes_PADD!#REF!","v":{"$error":"#REF!"}},{"$f":"Redd_Cptes_PADD!#REF!","v":{"$error":"#REF!"}},{"$f":"Redd_Cptes_PADD!#REF!","v":{"$error":"#REF!"}},{"$f":"Redd_Cptes_PADD!#REF!","v":{"$error":"#REF!"}},{"$f":"Redd_Cptes_PADD!#REF!","v":{"$error":"#REF!"}},{"$f":"Redd_Cptes_PADD!#REF!","v":{"$error":"#REF!"}},{"$f":"Redd_Cptes_PADD!#REF!","v":{"$error":"#REF!"}},{"$f":"Redd_Cptes_PADD!#REF!","v":{"$error":"#REF!"}},{"$f":"Redd_Cptes_PADD!#REF!","v":{"$error":"#REF!"}},{"$f":"Redd_Cptes_PADD!#REF!","v":{"$error":"#REF!"}},{"$f":"Redd_Cptes_PADD!#REF!","v":{"$error":"#REF!"}},{"$f":"Redd_Cptes_PADD!#REF!","v":{"$error":"#REF!"}},{"$f":"Redd_Cptes_PADD!#REF!","v":{"$error":"#REF!"}},{"$f":"Redd_Cptes_PADD!#REF!","v":{"$error":"#REF!"}},{"$f":"Redd_Cptes_PADD!#REF!","v":{"$error":"#REF!"}}]
[{"$f":"Table1[CLEF_uni]","v":0},{"$f":"Redd_Cptes_PADD!#REF!","v":{"$error":"#REF!"}},{"$f":"Redd_Cptes_PADD!#REF!","v":{"$error":"#REF!"}},{"$f":"Redd_Cptes_PADD!#REF!","v":{"$error":"#REF!"}},{"$f":"Redd_Cptes_PADD!#REF!","v":{"$error":"#REF!"}},0,{"$f":"Redd_Cptes_PADD!#REF!","v":{"$error":"#REF!"}},{"$f":"Redd_Cptes_PADD!#REF!","v":{"$error":"#REF!"}},{"$f":"Redd_Cptes_PADD!#REF!","v":{"$error":"#REF!"}},{"$f":"Redd_Cptes_PADD!#REF!","v":{"$error":"#REF!"}},{"$f":"Redd_Cptes_PADD!#REF!","v":{"$error":"#REF!"}},{"$f":"Redd_Cptes_PADD!#REF!","v":{"$error":"#REF!"}},{"$f":"Redd_Cptes_PADD!#REF!","v":{"$error":"#REF!"}},{"$f":"Redd_Cptes_PADD!#REF!","v":{"$error":"#REF!"}},{"$f":"Redd_Cptes_PADD!#REF!","v":{"$error":"#REF!"}},{"$f":"Redd_Cptes_PADD!#REF!","v":{"$error":"#REF!"}},{"$f":"Redd_Cptes_PADD!#REF!","v":{"$error":"#REF!"}},{"$f":"Redd_Cptes_PADD!#REF!","v":{"$error":"#REF!"}},{"$f":"Redd_Cptes_PADD!#REF!","v":{"$error":"#REF!"}},{"$f":"Redd_Cptes_PADD!#REF!","v":{"$error":"#REF!"}},{"$f":"Redd_Cptes_PADD!#REF!","v":{"$error":"#REF!"}},{"$f":"Redd_Cptes_PADD!#REF!","v":{"$error":"#REF!"}},{"$f":"Redd_Cptes_PADD!#REF!","v":{"$error":"#REF!"}},{"$f":"Redd_Cptes_PADD!#REF!","v":{"$error":"#REF!"}},{"$f":"Redd_Cptes_PADD!#REF!","v":{"$error":"#REF!"}},{"$f":"Redd_Cptes_PADD!#REF!","v":{"$error":"#REF!"}},{"$f":"Redd_Cptes_PADD!#REF!","v":{"$error":"#REF!"}},{"$f":"Redd_Cptes_PADD!#REF!","v":{"$error":"#REF!"}},{"$f":"Redd_Cptes_PADD!#REF!","v":{"$error":"#REF!"}},{"$f":"Redd_Cptes_PADD!#REF!","v":{"$error":"#REF!"}},{"$f":"Redd_Cptes_PADD!#REF!","v":{"$error":"#REF!"}},{"$f":"Redd_Cptes_PADD!#REF!","v":{"$error":"#REF!"}},{"$f":"Redd_Cptes_PADD!#REF!","v":{"$error":"#REF!"}},{"$f":"Redd_Cptes_PADD!#REF!","v":{"$error":"#REF!"}},{"$f":"Redd_Cptes_PADD!#REF!","v":{"$error":"#REF!"}},{"$f":"Redd_Cptes_PADD!#REF!","v":{"$error":"#REF!"}},{"$f":"Redd_Cptes_PADD!#REF!","v":{"$error":"#REF!"}}]
[{"$f":"Table1[CLEF_uni]","v":0},{"$f":"Redd_Cptes_PADD!#REF!","v":{"$error":"#REF!"}},{"$f":"Redd_Cptes_PADD!#REF!","v":{"$error":"#REF!"}},{"$f":"Redd_Cptes_PADD!#REF!","v":{"$error":"#REF!"}},{"$f":"Redd_Cptes_PADD!#REF!","v":{"$error":"#REF!"}},0,{"$f":"Redd_Cptes_PADD!#REF!","v":{"$error":"#REF!"}},{"$f":"Redd_Cptes_PADD!#REF!","v":{"$error":"#REF!"}},{"$f":"Redd_Cptes_PADD!#REF!","v":{"$error":"#REF!"}},{"$f":"Redd_Cptes_PADD!#REF!","v":{"$error":"#REF!"}},{"$f":"Redd_Cptes_PADD!#REF!","v":{"$error":"#REF!"}},{"$f":"Redd_Cptes_PADD!#REF!","v":{"$error":"#REF!"}},{"$f":"Redd_Cptes_PADD!#REF!","v":{"$error":"#REF!"}},{"$f":"Redd_Cptes_PADD!#REF!","v":{"$error":"#REF!"}},{"$f":"Redd_Cptes_PADD!#REF!","v":{"$error":"#REF!"}},{"$f":"Redd_Cptes_PADD!#REF!","v":{"$error":"#REF!"}},{"$f":"Redd_Cptes_PADD!#REF!","v":{"$error":"#REF!"}},{"$f":"Redd_Cptes_PADD!#REF!","v":{"$error":"#REF!"}},{"$f":"Redd_Cptes_PADD!#REF!","v":{"$error":"#REF!"}},{"$f":"Redd_Cptes_PADD!#REF!","v":{"$error":"#REF!"}},{"$f":"Redd_Cptes_PADD!#REF!","v":{"$error":"#REF!"}},{"$f":"Redd_Cptes_PADD!#REF!","v":{"$error":"#REF!"}},{"$f":"Redd_Cptes_PADD!#REF!","v":{"$error":"#REF!"}},{"$f":"Redd_Cptes_PADD!#REF!","v":{"$error":"#REF!"}},{"$f":"Redd_Cptes_PADD!#REF!","v":{"$error":"#REF!"}},{"$f":"Redd_Cptes_PADD!#REF!","v":{"$error":"#REF!"}},{"$f":"Redd_Cptes_PADD!#REF!","v":{"$error":"#REF!"}},{"$f":"Redd_Cptes_PADD!#REF!","v":{"$error":"#REF!"}},{"$f":"Redd_Cptes_PADD!#REF!","v":{"$error":"#REF!"}},{"$f":"Redd_Cptes_PADD!#REF!","v":{"$error":"#REF!"}},{"$f":"Redd_Cptes_PADD!#REF!","v":{"$error":"#REF!"}},{"$f":"Redd_Cptes_PADD!#REF!","v":{"$error":"#REF!"}},{"$f":"Redd_Cptes_PADD!#REF!","v":{"$error":"#REF!"}},{"$f":"Redd_Cptes_PADD!#REF!","v":{"$error":"#REF!"}},{"$f":"Redd_Cptes_PADD!#REF!","v":{"$error":"#REF!"}},{"$f":"Redd_Cptes_PADD!#REF!","v":{"$error":"#REF!"}},{"$f":"Redd_Cptes_PADD!#REF!","v":{"$error":"#REF!"}}]
[{"$f":"Table1[CLEF_uni]","v":0},{"$f":"Redd_Cptes_PADD!#REF!","v":{"$error":"#REF!"}},{"$f":"Redd_Cptes_PADD!#REF!","v":{"$error":"#REF!"}},{"$f":"Redd_Cptes_PADD!#REF!","v":{"$error":"#REF!"}},{"$f":"Redd_Cptes_PADD!#REF!","v":{"$error":"#REF!"}},0,{"$f":"Redd_Cptes_PADD!#REF!","v":{"$error":"#REF!"}},{"$f":"Redd_Cptes_PADD!#REF!","v":{"$error":"#REF!"}},{"$f":"Redd_Cptes_PADD!#REF!","v":{"$error":"#REF!"}},{"$f":"Redd_Cptes_PADD!#REF!","v":{"$error":"#REF!"}},{"$f":"Redd_Cptes_PADD!#REF!","v":{"$error":"#REF!"}},{"$f":"Redd_Cptes_PADD!#REF!","v":{"$error":"#REF!"}},{"$f":"Redd_Cptes_PADD!#REF!","v":{"$error":"#REF!"}},{"$f":"Redd_Cptes_PADD!#REF!","v":{"$error":"#REF!"}},{"$f":"Redd_Cptes_PADD!#REF!","v":{"$error":"#REF!"}},{"$f":"Redd_Cptes_PADD!#REF!","v":{"$error":"#REF!"}},{"$f":"Redd_Cptes_PADD!#REF!","v":{"$error":"#REF!"}},{"$f":"Redd_Cptes_PADD!#REF!","v":{"$error":"#REF!"}},{"$f":"Redd_Cptes_PADD!#REF!","v":{"$error":"#REF!"}},{"$f":"Redd_Cptes_PADD!#REF!","v":{"$error":"#REF!"}},{"$f":"Redd_Cptes_PADD!#REF!","v":{"$error":"#REF!"}},{"$f":"Redd_Cptes_PADD!#REF!","v":{"$error":"#REF!"}},{"$f":"Redd_Cptes_PADD!#REF!","v":{"$error":"#REF!"}},{"$f":"Redd_Cptes_PADD!#REF!","v":{"$error":"#REF!"}},{"$f":"Redd_Cptes_PADD!#REF!","v":{"$error":"#REF!"}},{"$f":"Redd_Cptes_PADD!#REF!","v":{"$error":"#REF!"}},{"$f":"Redd_Cptes_PADD!#REF!","v":{"$error":"#REF!"}},{"$f":"Redd_Cptes_PADD!#REF!","v":{"$error":"#REF!"}},{"$f":"Redd_Cptes_PADD!#REF!","v":{"$error":"#REF!"}},{"$f":"Redd_Cptes_PADD!#REF!","v":{"$error":"#REF!"}},{"$f":"Redd_Cptes_PADD!#REF!","v":{"$error":"#REF!"}},{"$f":"Redd_Cptes_PADD!#REF!","v":{"$error":"#REF!"}},{"$f":"Redd_Cptes_PADD!#REF!","v":{"$error":"#REF!"}},{"$f":"Redd_Cptes_PADD!#REF!","v":{"$error":"#REF!"}},{"$f":"Redd_Cptes_PADD!#REF!","v":{"$error":"#REF!"}},{"$f":"Redd_Cptes_PADD!#REF!","v":{"$error":"#REF!"}},{"$f":"Redd_Cptes_PADD!#REF!","v":{"$error":"#REF!"}}]
[{"$f":"Table1[CLEF_uni]","v":0},{"$f":"Redd_Cptes_PADD!#REF!","v":{"$error":"#REF!"}},{"$f":"Redd_Cptes_PADD!#REF!","v":{"$error":"#REF!"}},{"$f":"Redd_Cptes_PADD!#REF!","v":{"$error":"#REF!"}},{"$f":"Redd_Cptes_PADD!#REF!","v":{"$error":"#REF!"}},0,{"$f":"Redd_Cptes_PADD!#REF!","v":{"$error":"#REF!"}},{"$f":"Redd_Cptes_PADD!#REF!","v":{"$error":"#REF!"}},{"$f":"Redd_Cptes_PADD!#REF!","v":{"$error":"#REF!"}},{"$f":"Redd_Cptes_PADD!#REF!","v":{"$error":"#REF!"}},{"$f":"Redd_Cptes_PADD!#REF!","v":{"$error":"#REF!"}},{"$f":"Redd_Cptes_PADD!#REF!","v":{"$error":"#REF!"}},{"$f":"Redd_Cptes_PADD!#REF!","v":{"$error":"#REF!"}},{"$f":"Redd_Cptes_PADD!#REF!","v":{"$error":"#REF!"}},{"$f":"Redd_Cptes_PADD!#REF!","v":{"$error":"#REF!"}},{"$f":"Redd_Cptes_PADD!#REF!","v":{"$error":"#REF!"}},{"$f":"Redd_Cptes_PADD!#REF!","v":{"$error":"#REF!"}},{"$f":"Redd_Cptes_PADD!#REF!","v":{"$error":"#REF!"}},{"$f":"Redd_Cptes_PADD!#REF!","v":{"$error":"#REF!"}},{"$f":"Redd_Cptes_PADD!#REF!","v":{"$error":"#REF!"}},{"$f":"Redd_Cptes_PADD!#REF!","v":{"$error":"#REF!"}},{"$f":"Redd_Cptes_PADD!#REF!","v":{"$error":"#REF!"}},{"$f":"Redd_Cptes_PADD!#REF!","v":{"$error":"#REF!"}},{"$f":"Redd_Cptes_PADD!#REF!","v":{"$error":"#REF!"}},{"$f":"Redd_Cptes_PADD!#REF!","v":{"$error":"#REF!"}},{"$f":"Redd_Cptes_PADD!#REF!","v":{"$error":"#REF!"}},{"$f":"Redd_Cptes_PADD!#REF!","v":{"$error":"#REF!"}},{"$f":"Redd_Cptes_PADD!#REF!","v":{"$error":"#REF!"}},{"$f":"Redd_Cptes_PADD!#REF!","v":{"$error":"#REF!"}},{"$f":"Redd_Cptes_PADD!#REF!","v":{"$error":"#REF!"}},{"$f":"Redd_Cptes_PADD!#REF!","v":{"$error":"#REF!"}},{"$f":"Redd_Cptes_PADD!#REF!","v":{"$error":"#REF!"}},{"$f":"Redd_Cptes_PADD!#REF!","v":{"$error":"#REF!"}},{"$f":"Redd_Cptes_PADD!#REF!","v":{"$error":"#REF!"}},{"$f":"Redd_Cptes_PADD!#REF!","v":{"$error":"#REF!"}},{"$f":"Redd_Cptes_PADD!#REF!","v":{"$error":"#REF!"}},{"$f":"Redd_Cptes_PADD!#REF!","v":{"$error":"#REF!"}}]
[{"$f":"Table1[CLEF_uni]","v":0},{"$f":"Redd_Cptes_PADD!#REF!","v":{"$error":"#REF!"}},{"$f":"Redd_Cptes_PADD!#REF!","v":{"$error":"#REF!"}},{"$f":"Redd_Cptes_PADD!#REF!","v":{"$error":"#REF!"}},{"$f":"Redd_Cptes_PADD!#REF!","v":{"$error":"#REF!"}},0,{"$f":"Redd_Cptes_PADD!#REF!","v":{"$error":"#REF!"}},{"$f":"Redd_Cptes_PADD!#REF!","v":{"$error":"#REF!"}},{"$f":"Redd_Cptes_PADD!#REF!","v":{"$error":"#REF!"}},{"$f":"Redd_Cptes_PADD!#REF!","v":{"$error":"#REF!"}},{"$f":"Redd_Cptes_PADD!#REF!","v":{"$error":"#REF!"}},{"$f":"Redd_Cptes_PADD!#REF!","v":{"$error":"#REF!"}},{"$f":"Redd_Cptes_PADD!#REF!","v":{"$error":"#REF!"}},{"$f":"Redd_Cptes_PADD!#REF!","v":{"$error":"#REF!"}},{"$f":"Redd_Cptes_PADD!#REF!","v":{"$error":"#REF!"}},{"$f":"Redd_Cptes_PADD!#REF!","v":{"$error":"#REF!"}},{"$f":"Redd_Cptes_PADD!#REF!","v":{"$error":"#REF!"}},{"$f":"Redd_Cptes_PADD!#REF!","v":{"$error":"#REF!"}},{"$f":"Redd_Cptes_PADD!#REF!","v":{"$error":"#REF!"}},{"$f":"Redd_Cptes_PADD!#REF!","v":{"$error":"#REF!"}},{"$f":"Redd_Cptes_PADD!#REF!","v":{"$error":"#REF!"}},{"$f":"Redd_Cptes_PADD!#REF!","v":{"$error":"#REF!"}},{"$f":"Redd_Cptes_PADD!#REF!","v":{"$error":"#REF!"}},{"$f":"Redd_Cptes_PADD!#REF!","v":{"$error":"#REF!"}},{"$f":"Redd_Cptes_PADD!#REF!","v":{"$error":"#REF!"}},{"$f":"Redd_Cptes_PADD!#REF!","v":{"$error":"#REF!"}},{"$f":"Redd_Cptes_PADD!#REF!","v":{"$error":"#REF!"}},{"$f":"Redd_Cptes_PADD!#REF!","v":{"$error":"#REF!"}},{"$f":"Redd_Cptes_PADD!#REF!","v":{"$error":"#REF!"}},{"$f":"Redd_Cptes_PADD!#REF!","v":{"$error":"#REF!"}},{"$f":"Redd_Cptes_PADD!#REF!","v":{"$error":"#REF!"}},{"$f":"Redd_Cptes_PADD!#REF!","v":{"$error":"#REF!"}},{"$f":"Redd_Cptes_PADD!#REF!","v":{"$error":"#REF!"}},{"$f":"Redd_Cptes_PADD!#REF!","v":{"$error":"#REF!"}},{"$f":"Redd_Cptes_PADD!#REF!","v":{"$error":"#REF!"}},{"$f":"Redd_Cptes_PADD!#REF!","v":{"$error":"#REF!"}},{"$f":"Redd_Cptes_PADD!#REF!","v":{"$error":"#REF!"}}]
[null,null,{"$f":"COUNTIF(C5:C29,\"<>\")","v":25},null,null,{"$f":"COUNTIF(F5:F29,\"<>\")","v":25},null,"<--- Total",null,null,null,null,null,null,null,{"$f":"COUNTIF((P5:P29),\"ATTEINT\")","v":5},null,null,null,null,{"$f":"COUNTIF((U5:U29),\"ATTEINT\")","v":1},null,null,null,null,{"$f":"COUNTIF((Z5:Z29),\"ATTEINT\")","v":2},null,null,null,null,{"$f":"COUNTIF((AE5:AE29),\"ATTEINT\")","v":4},null,null,null,null,{"$f":"COUNTIF((AJ5:AJ29),\"ATTEINT\")","v":1}]
[]
[null,null,"Analyse Atteinte PADD"]
[null,null,"Années",null,"2023-2024",null,"2024-2025",null,"2025-2026",null,"2026-2027",null,"2027-2028",null,"2028-2029"]
[null,null,"Atteinte","Pondération","CIB_24","PTS_24","CIB_25","PTS_25","CIB_26","PTS_26","CIB_27","PTS_27","CIB_28","PTS_28","CIB_29","PTS_29"]
[null,null,"ATTEINT",1,{"$f":"COUNTIFS((K5:K29),\"ATTEINT\",(L5:L29),\"<=199%\")","v":0},{"$f":"E35*$D$35","v":0},{"$f":"COUNTIFS((P5:P29),\"ATTEINT\",(Q5:Q29),\"<=199%\")","v":5},{"$f":"G35*$D$35","v":5},{"$f":"COUNTIFS((U5:U29),\"ATTEINT\",(V5:V29),\"<=199%\")","v":1},{"$f":"I35*$D$35","v":1},{"$f":"COUNTIFS((Z5:Z29),\"ATTEINT\",(AA5:AA29),\"<=199%\")","v":2},{"$f":"K35*$D$35","v":2},{"$f":"COUNTIFS((AE5:AE29),\"ATTEINT\",(AF5:AF29),\"<=199%\")","v":4},{"$f":"M35*$D$35","v":4},{"$f":"COUNTIFS((AJ5:AJ29),\"ATTEINT\",(AK5:AK29),\"<=199%\")","v":1},{"$f":"O35*$D$35","v":1}]
[null,null,"DÉPASSÉ",0.8,{"$f":"COUNTIFS((K5:K29),\"ATTEINT\",(L5:L29),\">=200%\")","v":0},{"$f":"E36*$D$36","v":0},{"$f":"COUNTIFS((P5:P29),\"ATTEINT\",(Q5:Q29),\">=200%\")","v":0},{"$f":"G36*$D$36","v":0},{"$f":"COUNTIFS((U5:U29),\"ATTEINT\",(V5:V29),\">=200%\")","v":0},{"$f":"I36*$D$36","v":0},{"$f":"COUNTIFS((Z5:Z29),\"ATTEINT\",(AA5:AA29),\">=200%\")","v":0},{"$f":"K36*$D$36","v":0},{"$f":"COUNTIFS((AE5:AE29),\"ATTEINT\",(AF5:AF29),\">=200%\")","v":0},{"$f":"M36*$D$36","v":0},{"$f":"COUNTIFS((AJ5:AJ29),\"ATTEINT\",(AK5:AK29),\">=200%\")","v":0},{"$f":"O36*$D$36","v":0}]
[null,null,"NON ATTEINT- 90%",0.5,{"$f":"COUNTIFS((K5:K29),\"NON ATTEINT- Débuté\",(L5:L29),\">=90%\")","v":0},{"$f":"E37*$D$37","v":0},{"$f":"COUNTIFS((P5:P29),\"NON ATTEINT- Débuté\",(Q5:Q29),\">=90%\")","v":0},{"$f":"G37*$D$37","v":0},{"$f":"COUNTIFS((U5:U29),\"NON ATTEINT- Débuté\",(V5:V29),\">=90%\")","v":1},{"$f":"I37*$D$37","v":0.5},{"$f":"COUNTIFS((Z5:Z29),\"NON ATTEINT- Débuté\",(AA5:AA29),\">=90%\")","v":1},{"$f":"K37*$D$37","v":0.5},{"$f":"COUNTIFS((AE5:AE29),\"NON ATTEINT- Débuté\",(AF5:AF29),\">=90%\")","v":1},{"$f":"M37*$D$37","v":0.5},{"$f":"COUNTIFS((AJ5:AJ29),\"NON ATTEINT- Débuté\",(AK5:AK29),\">=90%\")","v":1},{"$f":"O37*$D$37","v":0.5}]
[null,null,"NON ATTEINT- 75%-89%",0.375,{"$f":"COUNTIFS((K5:K29),\"NON ATTEINT- Débuté\",(L5:L29),\">=75%\",(L5:L29),\"<=89%\")","v":0},{"$f":"E38*$D$38","v":0},{"$f":"COUNTIFS((P5:P29),\"NON ATTEINT- Débuté\",(Q5:Q29),\">=75%\",(Q5:Q29),\"<=89%\")","v":0},{"$f":"G38*$D$38","v":0},{"$f":"COUNTIFS((U5:U29),\"NON ATTEINT- Débuté\",(V5:V29),\">=75%\",(V5:V29),\"<=89%\")","v":1},{"$f":"I38*$D$38","v":0.375},{"$f":"COUNTIFS((Z5:Z29),\"NON ATTEINT- Débuté\",(AA5:AA29),\">=75%\",(AA5:AA29),\"<=89%\")","v":1},{"$f":"K38*$D$38","v":0.375},{"$f":"COUNTIFS((AE5:AE29),\"NON ATTEINT- Débuté\",(AF5:AF29),\">=75%\",(AF5:AF29),\"<=89%\")","v":0},{"$f":"M38*$D$38","v":0},{"$f":"COUNTIFS((AJ5:AJ29),\"NON ATTEINT- Débuté\",(AK5:AK29),\">=75%\",(AK5:AK29),\"<=89%\")","v":2},{"$f":"O38*$D$38","v":0.75}]
[null,null,"NON ATTEINT- 60%-74%",0.25,{"$f":"COUNTIFS((K5:K29),\"NON ATTEINT- Débuté\",(L5:L29),\">=60%\",(L5:L29),\"<=74%\")","v":0},{"$f":"E39*$D$39","v":0},{"$f":"COUNTIFS((P5:P29),\"NON ATTEINT- Débuté\",(Q5:Q29),\">=60%\",(Q5:Q29),\"<=74%\")","v":0},{"$f":"G39*$D$39","v":0},{"$f":"COUNTIFS((U5:U29),\"NON ATTEINT- Débuté\",(V5:V29),\">=60%\",(V5:V29),\"<=74%\")","v":1},{"$f":"I39*$D$39","v":0.25},{"$f":"COUNTIFS((Z5:Z29),\"NON ATTEINT- Débuté\",(AA5:AA29),\">=60%\",(AA5:AA29),\"<=74%\")","v":0},{"$f":"K39*$D$39","v":0},{"$f":"COUNTIFS((AE5:AE29),\"NON ATTEINT- Débuté\",(AF5:AF29),\">=60%\",(AF5:AF29),\"<=74%\")","v":0},{"$f":"M39*$D$39","v":0},{"$f":"COUNTIFS((AJ5:AJ29),\"NON ATTEINT- Débuté\",(AK5:AK29),\">=60%\",(AK5:AK29),\"<=74%\")","v":0},{"$f":"O39*$D$39","v":0}]
[null,null,"Abandonné",0,{"$f":"COUNTIF((K5:K29),\"Abandonné\")","v":0},{"$f":"E40*$D$40","v":0},{"$f":"COUNTIF((P5:P29),\"Abandonné\")","v":0},{"$f":"G40*$D$40","v":0},{"$f":"COUNTIF((U5:U29),\"Abandonné\")","v":0},{"$f":"I40*$D$40","v":0},{"$f":"COUNTIF((Z5:Z29),\"Abandonné\")","v":0},{"$f":"K40*$D$40","v":0},{"$f":"COUNTIF((AE5:AE29),\"Abandonné\")","v":0},{"$f":"M40*$D$40","v":0},{"$f":"COUNTIF((AJ5:AJ29),\"Abandonné\")","v":0},{"$f":"O40*$D$40","v":0}]
[null,null,"Total point",null,null,{"$f":"SUM(F35:F40)","v":0},null,{"$f":"SUM(H35:H40)","v":5},null,{"$f":"SUM(J35:J40)","v":2.125},null,{"$f":"SUM(L35:L40)","v":2.875},null,{"$f":"SUM(N35:N40)","v":4.5},null,{"$f":"SUM(P35:P40)","v":2.25}]
[null,null,"Transfert de responsabilité","S.O.",{"$f":"COUNTIF((K5:K29),\"Transfert de responsabilité\")","v":0},{"$f":"E42","v":0},{"$f":"COUNTIF((P5:P29),\"Transfert de responsabilité\")","v":0},{"$f":"G42","v":0},{"$f":"COUNTIF((U5:U29),\"Transfert de responsabilité\")","v":0},{"$f":"I42","v":0},{"$f":"COUNTIF((Z5:Z29),\"Transfert de responsabilité\")","v":0},{"$f":"K42","v":0},{"$f":"COUNTIF((AE5:AE29),\"Transfert de responsabilité\")","v":0},{"$f":"M42","v":0},{"$f":"COUNTIF((AJ5:AJ29),\"Transfert de responsabilité\")","v":0},{"$f":"O42","v":0}]
[null,null,"Total somme engagement",null,null,{"$f":"$F$30","v":25},null,{"$f":"$F$30","v":25},null,{"$f":"$F$30","v":25},null,{"$f":"$F$30","v":25},null,{"$f":"$F$30","v":25},null,{"$f":"$F$30","v":25}]
[null,null,"Total engagement",null,null,{"$f":"F43-F42","v":25},null,{"$f":"H43-H42","v":25},null,{"$f":"J43-J42","v":25},null,{"$f":"L43-L42","v":25},null,{"$f":"N43-N42","v":25},null,{"$f":"P43-P42","v":25}]
[null,null,"Total atteinte des cibles",null,null,{"$f":"F41/F44","v":0},null,{"$f":"H41/H44","v":0.2},null,{"$f":"J41/J44","v":8.5000000000000006E-2},null,{"$f":"L41/L44","v":0.115},null,{"$f":"N41/N44","v":0.18},null,{"$f":"P41/P44","v":0.09}]
[]
[]
[null,null,"Pointage de l'indice de performance en matière de développement durable"]
[null,null,"Facteurs","IPDD_24","IPDD_25","IPDD_26","IPDD_27","IPDD_28","IPDD_29"]
[null,null,"Qualité du PADD",{"$f":"Table510[TOT]","v":{"$error":"#DIV/0!"}},{"$f":"Table510[TOT]","v":{"$error":"#DIV/0!"}},{"$f":"Table510[TOT]","v":{"$error":"#DIV/0!"}},{"$f":"Table510[TOT]","v":{"$error":"#DIV/0!"}},{"$f":"Table510[TOT]","v":{"$error":"#DIV/0!"}},{"$f":"Table510[TOT]","v":{"$error":"#DIV/0!"}}]
[null,null,"Atteinte des cibles du PADD ",{"$f":"F45","v":0},{"$f":"H45","v":0.2},{"$f":"J45","v":8.5000000000000006E-2},{"$f":"L45","v":0.115},{"$f":"N45","v":0.18},{"$f":"P45","v":0.09}]
[null,null,"Total",{"$f":"ROUND((D50+D51)/2,2)","v":{"$error":"#DIV/0!"}},{"$f":"ROUND((E50+E51)/2,2)","v":{"$error":"#DIV/0!"}},{"$error":"#DIV/0!"},{"$error":"#DIV/0!"},{"$error":"#DIV/0!"},{"$error":"#DIV/0!"}]

{"sheet":"Notes","index":7,"n_rows":0,"n_cols":0,"rows_kept":0,"cut":false,"hidden":false,"merged":[]}